Cogmind - Beta 10.2 @@@ ROGUE MODE // 2021.05.05 @ 16:38:16 Player: aperiodic Result: Escaped! Performance ------------- Evolutions (9) 4500 Regions Visited (36) 7200 Robots Destroyed (483) 2415 Value Destroyed (23299) 23299 Prototype IDs (144) 2880 Alien Tech Used (10) 2000 Bonus (8826) 8826 TOTAL SCORE: 51120 Bonus ------- High Alert Combat Kills 4493 Follower Combat Kills 651 Aligned with FarCom 300 Met Data Miner 300 Met Zhirov 300 Win 3000 Friendly Fire -218 Cogmind --------- Core Integrity 143/1600 Matter 268/300 Energy 99/100 System Corruption 0% Temperature Cool (1) Movement Flying (35) Location To Epsilon Eridani Parts ------- > --- POWER (2) -------- (None) > --- PROPULSION (3) --- Improved Q-thruster > --- UTILITY (17) ----- Experimental Target Analyzer > --- WEAPON (3) ------- Enhanced Nova Cannon > --- INVENTORY (4) ---- Dimensional Manipulator Experimental ECM Suite Integrity Redistributor Peak State ------------ > --- POWER ------------ Mini Fusion Reactor > --- PROPULSION ------- Experimental Cesium-ion Thruster Cooled Field Propulsion Drive > --- UTILITY ---------- Improved Fusion Compressor Large Storage Unit Dimensional Manipulator Dimensional Manipulator Experimental Sensor Array Experimental Signal Interpreter Experimental Melee Analysis Suite Femtoactuators Advanced Reaction Control System Experimental Phase Shifter Experimental Utility Shielding Thermal Barrier Experimental Hacking Suite Experimental Hacking Suite Experimental Hacking Suite Advanced System Shield Advanced System Shield > --- WEAPON ----------- Enhanced Nova Cannon Sigix Broadsword > --- INVENTORY -------- Experimental Energy Well Experimental Melee Analysis Suite Experimental Weapon Shielding EM Dispersion Field Experimental Force Field Transdimensional Reconstructor High-powered Transdimensional Reconstructor Subatomic Replicator Longsword +1 [Rating: 199] Favorites ----------- Power Mini Fusion Reactor Engine Heavy Ion Engine Power Core Micro Fission Core Reactor Mini Fusion Reactor Propulsion Experimental Cesium-ion Thruster Treads Medium Treads Leg Biometal Leg Wheel Armored Wheel Hover Unit Improved Antigrav System Flight Unit Experimental Cesium-ion Thruster Utility Advanced System Shield Device Experimental Sensor Array Storage Medium Storage Unit Processor Experimental Signal Interpreter Hackware Advanced System Shield Protection Experimental Weapon Shielding Weapon Longsword +1 Energy Gun EM Pulse Gun Energy Cannon Enhanced Nova Cannon Ballistic Gun Assault Rifle Ballistic Cannon Light Cannon Launcher Mini Smartbomb Launcher Special Weapon Mining Laser Impact Weapon Core Stripper Slashing Weapon Longsword +1 Special Melee Weapon Improved Datajack Build | -11 -10 -10 -10 -9 -8 -7 -7 -7 -7 -7 -6 -6 -6 -6 -6 -6 -6 -5 -5 -5 -5 -5 -5 -5 -4 -4 -4 -4 -4 -4 -3 -3 -2 -2 -2 -1 ------- Run | Scr Mat Min Exi Min Mat Fac Was Fac Low Dat Pro Fac Was Fac Low Low Zio Pro Fac Was Fac Upp Upp Zhi Pro Fac Was Fac Arm Lab Res Tes Res Qua Sec Acc Slots Evolved 18 | . . . . . 4 2 . . . . . 2 . . . . . . 2 . . . . . . 2 . . . . 2 . 2 . . 2 Power 1 | . . . . . . . . . . . . . . . . . . . . . . . . . . . . . . . . . . . . 1 Propulsion 1 | . . . . . . . . . . . . . . . . . . . . . . . . . . . . . . . . . . . . 1 Utility 15 | . . . . . 4 2 . . . . . 2 . . . . . . 2 . . . . . . 2 . . . . 2 . 1 . . . Weapon 1 | . . . . . . . . . . . . . . . . . . . . . . . . . . . . . . . . . 1 . . . Parts Attached 614 | 7 9 9 . 7 41 13 . 8 . . . 21 . 46 . . 8 1 21 . 17 2 1 3 1 23 . 28 26 2 57 27 66 36 116 18 Power 39 | 1 1 2 . . 4 1 . 1 . . . 6 . 5 . . 1 . . . . . . 2 . 1 . . 3 . . 1 2 . 6 2 Engine 8 | 1 1 . . . 2 . . . . . . 3 . 1 . . . . . . . . . . . . . . . . . . . . . . Core 18 | . . 2 . . 2 1 . 1 . . . 3 . 4 . . 1 . . . . . . 1 . 1 . . 2 . . . . . . . Reactor 13 | . . . . . . . . . . . . . . . . . . . . . . . . 1 . . . . 1 . . 1 2 . 6 2 Propulsion 36 | 2 2 . . . 6 1 . . . . . 4 . 1 . . 2 . . . . . . . . . . . 2 . 2 . . 1 10 3 Treads 5 | 2 . . . . . . . . . . . . . . . . . . . . . . . . . . . . . . . . . . 3 . Leg 2 | . . . . . . . . . . . . . . . . . . . . . . . . . . . . . . . . . . . 2 . Wheel 5 | . 2 . . . 3 . . . . . . . . . . . . . . . . . . . . . . . . . . . . . . . Hover 7 | . . . . . . . . . . . . . . . . . . . . . . . . . . . . . . . . . . . 5 2 Flight 17 | . . . . . 3 1 . . . . . 4 . 1 . . 2 . . . . . . . . . . . 2 . 2 . . 1 . 1 Utility 378 | 2 1 . . . 12 5 . 7 . . . 8 . 38 . . 3 1 8 . 6 . 1 1 1 10 . 12 18 2 49 24 61 28 74 6 Device 222 | . . . . . 4 . . 2 . . . 1 . 16 . . 2 . 1 . 3 . 1 1 1 4 . 9 11 1 32 14 46 17 54 2 Storage 30 | 2 1 . . . 2 . . . . . . . . . . . . . . . . . . . . . . 1 . . 3 1 6 3 10 1 Processor 18 | . . . . . 1 1 . 1 . . . 4 . 2 . . . . . . 1 . . . . . . . 1 . 1 . . 1 4 1 Hackware 41 | . . . . . 3 4 . 3 . . . 1 . 8 . . . . 6 . 2 . . . . 4 . . 2 . 2 2 3 . . 1 Protection 67 | . . . . . 2 . . 1 . . . 2 . 12 . . 1 1 1 . . . . . . 2 . 2 4 1 11 7 6 7 6 1 Artifact . | . . . . . . . . . . . . . . . . . . . . . . . . . . . . . . . . . . . . . Weapon 161 | 2 5 7 . 7 19 6 . . . . . 3 . 2 . . 2 . 13 . 11 2 . . . 12 . 16 3 . 6 2 3 7 26 7 Energy Gun 9 | 1 . . . . . . . . . . . . . . . . . . . . . . . . . . . . . . . 1 . . 6 1 Energy Cannon 50 | . . . . . 2 . . . . . . 2 . . . . 1 . 4 . 5 1 . . . 5 . 7 1 . 4 1 2 3 6 6 Ballistic Gun 28 | 1 2 2 . 4 10 4 . . . . . . . . . . . . . . . . . . . . . . . . . . . . 5 . Ballistic Cannon 5 | . 2 2 . . 1 . . . . . . . . . . . . . . . . . . . . . . . . . . . . . . . Launcher 21 | . . 3 . 3 2 . . . . . . . . 1 . . . . 3 . 2 . . . . 1 . 2 . . 2 . 1 . 1 . Special Weapon 1 | . 1 . . . . . . . . . . . . . . . . . . . . . . . . . . . . . . . . . . . Impact Weapon 1 | . . . . . . . . . . . . . . . . . . . . . . . . . . . . . . . . . . 1 . . Slashing Weapon 44 | . . . . . 4 2 . . . . . 1 . 1 . . 1 . 6 . 4 1 . . . 5 . 6 2 . . . . 3 8 . Piercing Weapon . | . . . . . . . . . . . . . . . . . . . . . . . . . . . . . . . . . . . . . Special Melee Weapon 2 | . . . . . . . . . . . . . . . . . . . . . . . . . . 1 . 1 . . . . . . . . Unidentified Prototypes 37 | . . . . . 3 . . . . . . 4 . 1 . . 1 . . . . . . 2 . . . . 1 . 1 2 1 5 16 . Parts Lost 98 | . . 2 . 3 6 2 . 1 . 2 1 4 . 6 . . . . 1 . 1 . . . 1 1 . 2 6 . 3 . . . 37 19 Power 8 | . . 1 . 1 . . . . . 1 . 1 . 1 . . . . . . . . . . . . . . . . . . . . 2 1 Propulsion 11 | . . . . . 1 . . . . . 1 . . . . . . . . . . . . . . . . . . . . . . . 5 4 Utility 62 | . . . . . 4 2 . . . 1 . 3 . 5 . . . . 1 . 1 . . . 1 1 . 2 6 . 3 . . . 23 9 Weapon 17 | . . 1 . 2 1 . . 1 . . . . . . . . . . . . . . . . . . . . . . . . . . 7 5 Highest Loss Streak 8 | . . 2 . 2 4 2 . 1 . 2 3 2 . 1 . . . . 1 . 1 . . . 1 1 . 1 3 . 1 . . . 7 8 Average Slot Usage (%) 90 | . 99 99 100 92 87 80 84 88 92 92 69 80 93 91 93 93 92 93 89 88 85 100 99 100 97 92 100 97 83 94 99 99 99 95 85 41 Core 2 | . . 11 14 7 . 7 7 7 7 7 . 3 6 5 6 6 5 6 5 5 5 5 5 5 5 4 5 5 2 . . . . . . . Reactor 1 | . . . . . . . . . . . . . . . . . . . . . . . . . . . . . 2 5 4 3 3 4 3 1 Wheel 2 | . 16 28 28 28 16 . . . . . . . . . . . . . . . . . . . . . . . . . . . . . . . Flight 8 | . . . . . 1 14 15 15 15 15 7 11 13 12 13 13 12 13 11 11 11 11 11 11 11 10 10 10 9 10 9 9 8 7 2 . Device 11 | . . . . . 5 7 7 6 7 7 . 3 . 7 6 6 6 6 5 5 9 5 4 5 4 5 10 9 12 10 16 19 24 28 20 3 Storage 6 | . 28 28 28 28 20 . . . . . . . . . . . . . . . . . . . . . . 1 5 5 5 8 5 4 9 8 Processor 8 | . . . . . . 7 7 11 7 7 7 16 26 16 20 20 20 18 11 11 11 17 17 17 17 13 10 10 3 5 5 9 8 8 7 10 Hackware 24 | . . . . . 12 26 30 32 38 38 38 27 26 26 26 26 26 26 30 29 27 35 35 35 32 34 42 37 26 31 32 29 25 22 19 5 Protection 8 | . . . . . 4 . . . 7 7 7 8 13 13 13 13 13 14 16 17 11 11 11 11 11 9 10 9 9 20 13 6 7 7 6 1 Energy Cannon 1 | . . . . . 2 . . . . . . . . . . . . . . . . . . . . . . . 3 . 3 4 3 3 1 1 Ballistic Gun 3 | . 14 16 28 24 13 7 7 3 . . . . . . . . . . . . . . . . . . . . . . . . . . 4 . Slashing Weapon 3 | . . . . . . 6 7 7 7 7 7 5 6 5 6 6 5 6 4 5 4 5 5 5 5 4 5 4 4 5 4 4 4 4 2 . Naked Turns . | . . . . . . . . . . . . . . . . . . . . . . . . . . . . . . . . . . . . . Heaviest Build 95 | 14 22 22 21 22 60 11 11 12 11 11 4 14 12 15 11 11 14 15 20 15 15 15 15 15 15 19 14 32 43 41 50 56 64 69 95 58 Greatest Support 106 | 40 40 24 24 24 24 12 12 12 12 12 12 15 15 15 15 15 15 15 15 15 15 15 15 15 15 15 15 35 55 55 59 59 69 69 106 60 Greatest Overweight (x) 20 | . . . . . 2 . . . . . . 1 . . . . 3 . 1 . . . . . . 4 . 1 . 13 2 1 2 20 17 1 Average Overweight (x) . | . . . . . 1 . . . . . . . . . . . . . . . . . . . . . . . . 12 . . . . . . Largest Inventory Capacity 20 | 8 10 10 10 10 20 4 4 4 4 4 4 4 4 4 4 4 4 4 4 4 4 4 4 4 4 4 4 8 8 8 8 8 10 10 10 10 Average Capacity 7 | 6 9 10 10 10 14 4 4 4 4 4 4 4 4 4 4 4 4 4 4 4 4 4 4 4 4 4 4 5 8 8 8 8 8 10 10 8 Most Carried 18 | 4 10 10 10 10 18 4 4 4 4 4 4 4 4 4 3 3 4 4 4 4 4 3 3 4 4 4 4 6 8 8 8 8 8 10 10 10 Average Carried 6 | 2 8 9 9 9 10 3 4 4 4 4 4 3 4 3 3 3 3 3 4 4 3 3 2 3 4 3 4 4 6 8 6 7 7 9 9 7 Final Capacity 10 | 8 10 10 10 10 4 4 4 4 4 4 4 4 4 4 4 4 4 4 4 4 4 4 4 4 4 4 4 8 8 8 8 8 10 10 10 4 Final Carried 10 | 3 10 9 10 8 3 4 4 4 4 4 4 4 4 3 3 3 4 4 4 4 3 3 2 4 4 4 4 6 8 8 7 7 8 10 10 3 Class Distribution -------------------- 39% | Wizard-Sprinter 19% | Hacker-Sprinter 14% | Wizard-Mutant 9% | Mutant 3% | Hacker-Mutant 3% | Wizard-Skirmisher Dominant Class ---------------- Mutant | -10/Materials Mutant | -10/Mines Mutant | -10/Exiles Mutant | -9/Mines Hacker-Mutant | -8/Materials Hacker-Sprinter | -7/Factory Hacker-Sprinter | -7/Waste Hacker-Sprinter | -7/Factory Hacker-Sprinter | -7/Lower Caves Hacker-Sprinter | -7/Data Miner Hacker-Mutant | -6/Proximity Caves Hacker-Sprinter | -6/Factory Hacker-Sprinter | -6/Waste Hacker-Sprinter | -6/Factory Hacker-Sprinter | -6/Lower Caves Hacker-Sprinter | -6/Lower Caves Hacker-Sprinter | -6/Zion Hacker-Sprinter | -5/Proximity Caves Wizard-Sprinter | -5/Factory Wizard-Sprinter | -5/Waste Wizard-Sprinter | -5/Factory Wizard-Sprinter | -5/Upper Caves Wizard-Sprinter | -5/Upper Caves Wizard-Sprinter | -5/Zhirov Wizard-Sprinter | -4/Proximity Caves Wizard-Sprinter | -4/Factory Wizard-Sprinter | -4/Waste Wizard-Sprinter | -4/Factory Wizard-Sprinter | -4/Armory Wizard-Mutant | -4/Lab Wizard-Sprinter | -3/Research Wizard-Sprinter | -3/Testing Wizard-Sprinter | -2/Research Wizard-Sprinter | -2/Quarantine Wizard-Skirmisher | -2/Section 7 Scavenger-Mutant | -1/Access Resources | -11 -10 -10 -10 -9 -8 -7 -7 -7 -7 -7 -6 -6 -6 -6 -6 -6 -6 -5 -5 -5 -5 -5 -5 -5 -4 -4 -4 -4 -4 -4 -3 -3 -2 -2 -2 -1 ----------- Run | Scr Mat Min Exi Min Mat Fac Was Fac Low Dat Pro Fac Was Fac Low Low Zio Pro Fac Was Fac Upp Upp Zhi Pro Fac Was Fac Arm Lab Res Tes Res Qua Sec Acc Matter Collected 14370 | 268 186 213 . 230 886 135 . 82 3 . . 210 . 608 . 5 80 10 310 . 89 88 331 . 127 189 . 359 412 . 605 270 2278 1318 4990 88 Remotely . | . . . . . . . . . . . . . . . . . . . . . . . . . . . . . . . . . . . . . Salvage Created 24234 | 108 419 158 . 331 1509 417 . 163 . . . 673 . 2122 . . . . 404 . 89 72 476 . 129 809 . 989 520 . 1568 377 3123 1499 7945 334 Parts 1282 | 8 26 17 . 25 93 24 . 13 . . . 39 . 111 . . . . 34 . 5 1 27 . 11 38 . 37 22 . 99 28 176 84 353 11 Haulers Intercepted 17 | . 2 . . . 6 2 . . . . . 1 . 3 . . . . . . . . . . . . . . . . . . 1 . 2 . Recyclers Shooed 6 | . . . . . 1 . . . . . . . . . . . . . . . . . . . . . . . . . 1 . 1 2 . 1 Parts Field Recycled . | . . . . . . . . . . . . . . . . . . . . . . . . . . . . . . . . . . . . . Retrieved Matter . | . . . . . . . . . . . . . . . . . . . . . . . . . . . . . . . . . . . . . Parts Self-Destructed 41 | . . . . . . . . . . . . . . . . . 2 15 . . . . 13 . 11 . . . . . . . . . . . Prevented . | . . . . . . . . . . . . . . . . . . . . . . . . . . . . . . . . . . . . . Kills | -11 -10 -10 -10 -9 -8 -7 -7 -7 -7 -7 -6 -6 -6 -6 -6 -6 -6 -5 -5 -5 -5 -5 -5 -5 -4 -4 -4 -4 -4 -4 -3 -3 -2 -2 -2 -1 ------- Run | Scr Mat Min Exi Min Mat Fac Was Fac Low Dat Pro Fac Was Fac Low Low Zio Pro Fac Was Fac Upp Upp Zhi Pro Fac Was Fac Arm Lab Res Tes Res Qua Sec Acc Combat Hostiles Destroyed 323 | . 6 12 . 10 24 4 . . . . . 9 . 30 . . . . 14 . . . 18 . 2 10 . 10 8 . 17 5 31 10 98 5 Melee 175 | . . . . . . 4 . . . . . 9 . 26 . . . . 4 . . . 1 . 2 6 . 9 8 . 17 5 26 9 49 . Guns 58 | . 4 5 . 1 9 . . . . . . . . . . . . . . . . . . . . . . . . . . . . . 39 . Cannons 17 | . 2 . . . 2 . . . . . . . . . . . . . . . . . . . . . . . . . . . . . 10 3 AOE 70 | . . 7 . 9 13 . . . . . . . . 4 . . . . 10 . . . 17 . . 4 . 1 . . . . 5 . . . Classes Destroyed 22 | 2 4 1 . 1 4 1 . . . . . . . 1 . . . . 1 . . . 1 . 1 . . . . . . . 1 2 2 . Worker 35 | . . . . . 2 2 . 1 . . . . . 2 . . . . 4 . . . . . . 4 . 1 . . . 1 4 10 4 . Builder 13 | . . . . . 2 . . . . . . . . 1 . . . . 1 . . . . . . . . . . . . . 2 4 3 . Tunneler 14 | 2 1 . . 2 2 . . . . . . . . 1 . . . . . . 1 . . . . 1 . . . . . . 4 . . . Hauler 17 | . 2 . . . 6 2 . . . . . 1 . 3 . . . . . . . . . . . . . . . . . . 1 . 2 . Recycler 21 | 1 . . . . 3 . . . . . . . . 3 . . . . . . . . . . . . . 1 . . 3 . 7 3 . . Minesweeper 1 | . . . . . . . . . . . . . . . . . . . . . . . . . 1 . . . . . . . . . . . Mechanic 5 | . . . . . . . . . . . . . . 1 . . . . . . . . . . . . . . . . . . 1 . 3 . Operator 7 | . 2 . . . 2 . . . . . . . . 1 . . . . . . . . . . . 1 . . . . . . 1 . . . Drone 1 | . . . . . . . . . . . . . . . . . . . . . . . . . . . . . . . . . 1 . . . Watcher 47 | . 1 . . . 3 3 . 5 . . . 2 . 4 . . . . 3 . 2 . . . . 3 . 5 . . 1 1 6 2 5 1 Swarmer 63 | . . 9 . 2 7 . . . . . . . . 15 . . . . 9 . . . 10 . . . . . . . . . 8 . 3 . Saboteur 1 | . . . . . . . . . . . . . . . . . . . . . . . . . . . . . . . . . . . 1 . Grunt 78 | . 6 3 . 7 10 . . . . . . 4 . 7 . . . . . . . . 5 . . 4 . 1 3 . . 1 2 . 25 . Brawler 8 | . . . . . 1 . . . . . . . . . . . . . . . . . 1 . . . . . . . . . . . 6 . Duelist 6 | . . . . . . . . . . . . . . . . . . . . . . . 2 . . . . . . . . . . . 4 . Protector 2 | . . . . 1 . . . . . . . . . . . . . . . . . . . . . . . . . . . . . . 1 . Sentry 33 | . . . . . 6 1 . . . . . 2 . 3 . . . . 1 . . . . . . 1 . 5 1 . 1 . 3 . 8 1 Hunter 14 | . . . . . . . . . . . . . . . . . . . 2 . . . . . . . . . . . . 2 . . 8 2 Programmer 108 | . . . . . . 3 . . . . . 3 . 5 . . . . 2 . . . . . 2 5 . 4 4 . 16 2 17 8 35 2 S7 Guard 3 | . . . . . . . . . . . . . . . . . . . . . . . . . . . . . . . . . . . 3 . Executioner 2 | . . . . . . . . . . . . . . . . . . . . . . . . . . . . . . . . . . . 2 . Alpha 7 3 | . . . . . . . . . . . . . . . . . . . . . . . . . . . . . . . . . . 1 2 . Fortress 1 | . . . . . . . . . . . . . . . . . . . . . . . . . . . . . . . . . . 1 . . Decomposer 6 | . . . . . . . . . . . . . . . . . . . . . . 3 3 . . . . . . . . . . . . . Thug 1 | . . . . 1 . . . . . . . . . . . . . . . . . . . . . . . . . . . . . . . . Best Kill Streak 10 | 2 4 6 . 4 10 2 . 1 . . . 6 . 6 . . . . 10 . 1 . 6 . 3 6 . 3 2 . 4 2 7 5 7 3 Combat Bots Only 9 | . 2 6 . 4 9 2 . . . . . 6 . 4 . . . . 8 . . . 6 . 2 4 . 2 2 . 3 2 6 3 6 2 Max Kills in Single Turn 7 | 1 1 2 . 3 3 1 . 1 . . . 1 . 4 . . . . 7 . 1 1 4 . 1 3 . 1 1 . 1 1 2 1 2 1 Gunslinging 1 | . . . . . . . . . . . . . . . . . . . . . . . . . . . . . . . . . . . 1 . Exploded 5 | . . 2 . 3 3 . . . . . . . . 3 . . . . 5 . . . 4 . . 2 . 1 . . . . 2 . . . Melee 1 | . . . . . . 1 . . . . . 1 . 1 . . . . 1 . . . 1 . 1 1 . 1 1 . 1 1 1 1 1 . Uniques/NPCs Destroyed . | . . . . . . . . . . . . . . . . . . . . . . . . . . . . . . . . . . . . . Combat | -11 -10 -10 -10 -9 -8 -7 -7 -7 -7 -7 -6 -6 -6 -6 -6 -6 -6 -5 -5 -5 -5 -5 -5 -5 -4 -4 -4 -4 -4 -4 -3 -3 -2 -2 -2 -1 -------- Run | Scr Mat Min Exi Min Mat Fac Was Fac Low Dat Pro Fac Was Fac Low Low Zio Pro Fac Was Fac Upp Upp Zhi Pro Fac Was Fac Arm Lab Res Tes Res Qua Sec Acc Damage Taken 23105 | . 135 562 . 235 1075 253 . 109 . 279 136 289 . 990 . . . . 566 . 89 . 163 . 228 354 . 580 762 . 1102 151 488 555 11108 2896 Core 4277 | . 29 74 . 24 168 71 . 20 . 47 84 112 . 336 . . . . 193 . 20 . 107 . 146 146 . 167 204 . 165 5 65 . 679 1415 Absorbed by Shields 702 | . . . . . 95 . . . . . . . . 27 . . . . . . . . . . . . . . . . . 112 136 . 314 18 Reduced by Siege Mode 157 | . . . . . . . . . . . . . . . . . . . . . . . . . . . . . . . . . . . 157 . Core Remaining (%) 58 | 100 . . . 49 69 . . . . . 68 . . . . . . 47 . . . . . . 53 . . . . 48 . 86 . . 55 8 Volleys Fired 610 | 8 40 31 . 14 79 2 . . . . . 3 . 2 . . 1 . 18 . 8 1 9 . . 17 . 28 . . 57 6 17 6 215 48 Largest 3 | 2 2 2 . 2 2 2 . . . . . 1 . 1 . . 1 . 1 . 1 1 1 . . 1 . 1 . . 1 1 1 1 3 2 Hottest 196 | 60 100 55 . 40 91 45 . . . . . 35 . 45 . . 35 . 80 . 80 35 80 . . 80 . 80 . . 113 113 120 120 196 145 Shots Fired 1017 | 16 72 57 . 21 146 3 . . . . . 3 . 2 . . 1 . 18 . 8 1 9 . . 17 . 28 . . 57 6 17 6 474 55 Gun 640 | 16 52 36 . 14 100 3 . . . . . . . . . . . . . . . . . . . . . . . . . . . . 405 14 Cannon 314 | . 12 16 . . 34 . . . . . . 3 . . . . 1 . 15 . 6 1 . . . 14 . 20 . . 56 6 14 6 69 41 Launcher 55 | . . 5 . 7 12 . . . . . . . . 2 . . . . 3 . 2 . 9 . . 3 . 8 . . 1 . 3 . . . Special 8 | . 8 . . . . . . . . . . . . . . . . . . . . . . . . . . . . . . . . . . . Kinetic 627 | 8 44 52 . 14 110 3 . . . . . . . . . . . . . . . . . . . . . . . . . . . . 396 . Thermal 289 | . 8 . . . 24 . . . . . . 3 . . . . 1 . 15 . 6 1 . . . 14 . 20 . . 56 6 14 6 74 41 Explosive 55 | . . 5 . 7 12 . . . . . . . . 2 . . . . 3 . 2 . 9 . . 3 . 8 . . 1 . 3 . . . Electromagnetic 46 | 8 20 . . . . . . . . . . . . . . . . . . . . . . . . . . . . . . . . . 4 14 Robot Hit Streak 34 | 3 13 8 . 7 8 8 . . . . . . . . . . . . 2 . . . 3 . . . . . . . 4 . . . 34 17 Robot Miss Streak 16 | 2 2 2 . 2 3 . . . . . . . . 6 . . . . 16 . . . . . . . . . . . . . . . 5 1 Penetration Max 2 | . . . . . . . . . . . . . . . . . . . . . . . . . . . . . . . . . . . 2 . Secondary Targets 10 | . 1 . . . . . . . . . . . . . . . . . . . . . . . . . . . . . . . . . 8 1 Max Gunslinging Chain 1 | . 1 . . . . . . . . . . . . . . . . . . . . . . . . . . . . . . . . . 1 1 Shots Hit Robots 1472 | 8 46 36 . 8 99 27 . 14 . 1 . 28 . 97 . . . 2 37 . 9 3 10 . 6 28 . 43 38 . 115 21 139 56 570 31 Core Hits 722 | 3 19 16 . 23 68 13 . 6 . . . 14 . 51 . . . . 36 . 4 3 29 . 3 24 . 24 13 . 35 9 61 25 228 15 Critical Hits 96 | . 2 . . . 5 1 . 1 . . . 1 . 6 . . . . 4 . 1 1 . . . . . 2 . . 3 4 9 11 40 5 Critical Kills 32 | . 1 . . . 3 . . . . . . . . 5 . . . . . . . 1 . . . . . . . . . 2 1 6 12 1 Critical Parts Destroyed 59 | . 1 . . . 2 1 . 1 . . . 1 . 1 . . . . 4 . 1 . . . . . . 1 . . 3 2 8 5 24 4 Melee Attacks 1325 | . . . . . 13 66 . 59 3 5 . 37 . 121 . . 6 2 58 . 34 5 7 . 9 57 . 69 46 . 164 28 165 78 293 . Kinetic 2 | . . . . . . . . . . . . . . . . . . . . . . . . . . . . . . . . . . 2 . . Impact . | . . . . . . . . . . . . . . . . . . . . . . . . . . . . . . . . . . . . . Slashing 1320 | . . . . . 13 66 . 59 3 5 . 37 . 121 . . 6 2 58 . 34 5 7 . 9 54 . 69 46 . 164 28 165 76 293 . Piercing . | . . . . . . . . . . . . . . . . . . . . . . . . . . . . . . . . . . . . . Sneak Attacks 115 | . . . . . 4 4 . 2 . 1 . 4 . 11 . . . 1 7 . 2 3 3 . 1 9 . 2 . . 4 3 28 17 9 . Combat Hostiles 7 | . . . . . . . . . . . . . . 1 . . . 1 2 . . . . . . . . . . . . 1 2 . . . Follow-up Attacks 3 | . . . . . . . . . . . . . . . . . . . . . . . . . . . . . . . . . . 1 2 . Damage Inflicted 89367 | 128 632 826 . 616 3273 1615 . 938 . 122 . 1864 . 6559 . . . 205 3725 . 706 469 2701 . 441 2769 . 3235 1911 . 6195 1431 11566 7018 29124 1298 Guns 11143 | 107 402 284 . 86 952 33 . . . . . . . . . . . . . . . . . . . . . . . . . . . . 8863 416 Cannons 3836 | . 195 142 . . 428 . . . . . . . . . . . . . . . . . . . . . . . . . 38 . . . 2163 870 Explosions 7395 | 21 35 400 . 530 907 . . . . . . . . 252 . . . . 1214 . 57 . 1974 . . 646 . 459 . . 40 . 860 . . . Melee 66981 | . . . . . 986 1582 . 938 . 122 . 1864 . 6307 . . . 205 2511 . 649 469 727 . 441 2123 . 2776 1911 . 6117 1431 10706 7018 18098 . Ramming 12 | . . . . . . . . . . . . . . . . . . . . . . . . . . . . . . . . . . . . 12 Kinetic 10768 | 26 398 426 . 86 1087 33 . . . . . . . . . . . . . . . . . . . . . . . . . . . 36 8676 . Thermal 3626 | 21 35 . . 45 293 . . . . . . . . . . . . . . . . . . . . . . 78 . . 38 . . . 2246 870 Explosive 7216 | . . 400 . 485 907 . . . . . . . . 252 . . . . 1214 . 57 . 1974 . . 646 . 381 . . 40 . 860 . . . Electromagnetic 800 | 81 199 . . . . . . . . . . . . . . . . . . . . . . . . . . . . . . . . . 104 416 Impact . | . . . . . . . . . . . . . . . . . . . . . . . . . . . . . . . . . . . . . Slashing 66945 | . . . . . 986 1582 . 938 . 122 . 1864 . 6307 . . . 205 2511 . 649 469 727 . 441 2123 . 2776 1911 . 6117 1431 10706 6982 18098 . Piercing . | . . . . . . . . . . . . . . . . . . . . . . . . . . . . . . . . . . . . . Highest Corruption 34 | . . . . . . 2 2 3 3 3 3 2 11 11 4 4 4 . 3 10 10 . . . 4 1 . . 2 . 1 . 2 2 34 . Average Corruption 5 | . . . . . . 1 2 2 3 3 3 1 7 6 4 4 4 . 2 10 6 . . . 3 1 . . 1 . 1 . 1 2 13 . Corruption Purged 29 | . . . . . . . . . . . . . . 7 . . . . 3 . 13 . . . . 1 . . 3 . 2 . . . . . Effects 553 | . . . . . . 7 . 28 2 1 . 6 1 74 1 1 2 . 6 . 41 . . . 4 3 . . 3 . 8 . 15 17 333 . Message Errors 116 | . . . . . . 3 . 17 2 . . 3 1 18 . 1 . . 1 . 14 . . . 1 1 . . 1 . 1 . 3 5 44 . Matter Fused 78 | . . . . . . . . 1 . . . . . 19 1 . . . 1 . 18 . . . 1 . . . . . . . . . 37 . Heat Flow Errors 50 | . . . . . . . . 4 . . . 1 . 10 . . 1 . 1 . 2 . . . 1 . . . 1 . . . 4 7 18 . Energy Discharges 53 | . . . . . . 2 . 3 . 1 . 2 . 9 . . 1 . 1 . 3 . . . . 1 . . 1 . 2 . 3 2 22 . Parts Rejected 4 | . . . . . . . . . . . . . . . . . . . . . . . . . . . . . . . . . . . 4 . Data Loss (minor) 38 | . . . . . . 1 . 3 . . . . . 2 . . . . 1 . . . . . 1 . . . . . 2 . 2 2 24 . Data Loss (major) 5 | . . . . . . . . . . . . . . 1 . . . . . . . . . . . . . . . . . . . . 4 . Misfires 7 | . . . . . . . . . . . . . . . . . . . . . . . . . . . . . . . . . . . 7 . Alerts 1 | . . . . . . . . . . . . . . . . . . . . . . . . . . . . . . . . . . . 1 . Misdirections 29 | . . . . . . . . . . . . . . 7 . . . . . . . . . . . . . . . . . . . . 22 . Targeting Errors 146 | . . . . . . 1 . . . . . . . 8 . . . . 1 . 4 . . . . 1 . . . . 3 . 3 1 124 . Weapon Failures 26 | . . . . . . . . . . . . . . . . . . . . . . . . . . . . . . . . . . . 26 . Overload Shots . | . . . . . . . . . . . . . . . . . . . . . . . . . . . . . . . . . . . . . Overflow Damage 10583 | . . 30 . 12 177 309 . 139 . 62 . 178 . 996 . . . 48 589 . 154 . 255 . 35 467 . 293 137 . 718 164 2206 1595 2002 17 Projectiles 55 | . . . . . . . . . . . . . . . . . . . . . . . . . . . . . . . . . . . 38 17 Explosions 325 | . . 30 . 12 . . . . . . . . . . . . . . 82 . . . 63 . . . . . . . . . 138 . . . Melee 10203 | . . . . . 177 309 . 139 . 62 . 178 . 996 . . . 48 507 . 154 . 192 . 35 467 . 293 137 . 718 164 2068 1595 1964 . Knockbacks 1 | . . 1 . . . . . . . . . . . . . . . . . . . . . . . . . . . . . . . . . . Impact . | . . . . . . . . . . . . . . . . . . . . . . . . . . . . . . . . . . . . . Kinetic 1 | . . 1 . . . . . . . . . . . . . . . . . . . . . . . . . . . . . . . . . . Secondary . | . . . . . . . . . . . . . . . . . . . . . . . . . . . . . . . . . . . . . Self-Inflicted Damage 284 | . 15 36 . 92 55 . . . . . . . . 43 . . . . . . . . . . . . . 38 . . . . . . . 5 Shots 12 | . 1 2 . 3 3 . . . . . . . . 2 . . . . . . . . . . . . . 1 . . . . . . . . Rammed 4 | . . . . . . . . . . . . . . . . . . . . . . . . . . . . . . . . . . . . 4 Targets Rammed 4 | . . . . . . . . . . . . . . . . . . . . . . . . . . . . . . . . . . . . 4 Kicked . | . . . . . . . . . . . . . . . . . . . . . . . . . . . . . . . . . . . . . Crushed . | . . . . . . . . . . . . . . . . . . . . . . . . . . . . . . . . . . . . . Highest Temperature 416 | 40 80 36 . 21 231 . . 220 . . . 114 . 233 . . 270 . 203 . 211 . 60 . 143 42 . 43 207 . 262 250 286 296 416 216 Average Temperature 80 | 16 27 15 . 18 53 . . 101 . . . 67 . 90 . . 140 . 84 . 94 . 27 . 76 22 . 21 117 . 69 102 113 92 100 71 Received Heat Transfer 2904 | . 66 213 . 39 399 27 . 9 . 36 18 27 . 153 . . . . 51 . . . 27 . . 27 . 90 111 . 18 7 40 . 1478 68 Effects 12 | . . . . . . . . 3 . . . . . . . . . . . . . . . . . . . . . . . 1 2 . 6 . Shutdowns 1 | . . . . . . . . . . . . . . . . . . . . . . . . . . . . . . . . . . . 1 . Interference 11 | . . . . . . . . 3 . . . . . . . . . . . . . . . . . . . . . . . 1 2 . 5 . Siege Activations 4 | . . . . . . . . . . . . . . . . . . . . . . . . . . . . . . . . . . . 4 . Total Turns 157 | . . . . . . . . . . . . . . . . . . . . . . . . . . . . . . . . . . . 157 . Longest Duration 63 | . . . . . . . . . . . . . . . . . . . . . . . . . . . . . . . . . . . 63 . Robots Corrupted 2 | . . . . . . . . . . . . . . . . . . . . . . . . . . . . . . . . . . . . 2 Combat Hostiles 2 | . . . . . . . . . . . . . . . . . . . . . . . . . . . . . . . . . . . . 2 Parts Fried 10 | . 1 . . . . . . . . . . . . . . . . . . . . . . . . 2 . . . . . . . . 2 5 Impact Corruptions . | . . . . . . . . . . . . . . . . . . . . . . . . . . . . . . . . . . . . . Robots Melted . | . . . . . . . . . . . . . . . . . . . . . . . . . . . . . . . . . . . . . Combat Hostiles . | . . . . . . . . . . . . . . . . . . . . . . . . . . . . . . . . . . . . . Parts Melted 11 | . . . . . 3 . . . . . . . . . . . . . . . . . . . . . . . . . 4 . 1 . 3 . Heat Transferred 3326 | 50 50 . . 50 518 . . . . . . . . . . . . . . . . . . . . . . 50 . . 37 . . . 1831 740 Parts Sabotaged 1 | . . . . . . . . . . . . . . . . . . . . . . . . . . . . . . . . . . . 1 . Parts Stolen 1 | . . . . . . . . . . . . . . . . . . . . . . . 1 . . . . . . . . . . . . . Parts Stripped . | . . . . . . . . . . . . . . . . . . . . . . . . . . . . . . . . . . . . . Power Chain Reactions 2 | 1 1 . . . . . . . . . . . . . . . . . . . . . . . . . . . . . . . . . . . Missiles Intercepted . | . . . . . . . . . . . . . . . . . . . . . . . . . . . . . . . . . . . . . Alert | -11 -10 -10 -10 -9 -8 -7 -7 -7 -7 -7 -6 -6 -6 -6 -6 -6 -6 -5 -5 -5 -5 -5 -5 -5 -4 -4 -4 -4 -4 -4 -3 -3 -2 -2 -2 -1 ------- Run | Scr Mat Min Exi Min Mat Fac Was Fac Low Dat Pro Fac Was Fac Low Low Zio Pro Fac Was Fac Upp Upp Zhi Pro Fac Was Fac Arm Lab Res Tes Res Qua Sec Acc Peak Influence 1899 | 15 126 270 . 258 506 698 170 528 . . . 645 110 1076 . . . . 424 124 426 . . . . 462 89 505 533 . 967 541 797 667 1899 1532 Initial 1139 | . 9 . . . 31 175 140 119 . . . . 50 73 . . . . 135 79 86 . . . . 46 59 62 247 . . 150 265 447 122 1139 Average 319 | 7 39 110 . 112 288 351 152 223 . . . 119 90 519 . . . . 133 97 76 . . . . 87 72 97 352 . 273 269 345 361 650 1345 Maximum Alert Level 5 | . . 1 . 1 2 2 . 2 . . . 2 . 3 . . . . 2 . 2 . . . . 2 . 2 2 . 3 2 3 2 5 4 Low Security (%) 46 | 100 100 71 . 98 28 21 100 59 . . . 86 100 22 . . . . 77 100 89 . . . . 97 100 91 1 . 61 48 7 9 13 . Level 1 27 | . . 28 . 1 53 47 . 24 . . . 13 . 19 . . . . 22 . 7 . . . . . . 5 64 . 13 16 72 44 24 . Level 2 16 | . . . . . 17 31 . 16 . . . . . 30 . . . . . . 2 . . . . 1 . 2 34 . 7 35 8 45 32 . Level 3 5 | . . . . . . . . . . . . . . 27 . . . . . . . . . . . . . . . . 17 . 11 . 9 . Level 4 3 | . . . . . . . . . . . . . . . . . . . . . . . . . . . . . . . . . . . 9 100 Level 5 1 | . . . . . . . . . . . . . . . . . . . . . . . . . . . . . . . . . . . 9 . High Security . | . . . . . . . . . . . . . . . . . . . . . . . . . . . . . . . . . . . . . Max Security . | . . . . . . . . . . . . . . . . . . . . . . . . . . . . . . . . . . . . . Squads Dispatched 101 | . 3 . . 1 4 8 . 2 . . . 4 . 9 . . . . 4 . 3 . 1 . . 3 . 3 3 . 9 2 10 3 23 6 Investigation 19 | . 1 . . . 2 5 . 1 . . . 1 . 3 . . . . 1 . 1 . . . . . . . 1 . . . . . 1 2 Extermination 50 | . . . . . . 2 . 1 . . . 3 . 3 . . . . 3 . 2 . . . . 3 . 3 1 . 5 1 6 3 12 2 Reinforcement 14 | . 2 . . . 2 . . . . . . . . 2 . . . . . . . . . . . . . . 1 . 1 1 1 . 4 . Assault 15 | . . . . 1 . 1 . . . . . . . 1 . . . . . . . . 1 . . . . . . . 3 . . . 6 2 Garrison 3 | . . . . . . . . . . . . . . . . . . . . . . . . . . . . . . . . . 3 . . . Intercept . | . . . . . . . . . . . . . . . . . . . . . . . . . . . . . . . . . . . . . Construction Impeded 3 | . . . . . . . . . . . . . . . . . . . . . . . . . . . . . . . . . . . 3 . Haulers Reinforced 1 | . . . . . . . . . . . . . . 1 . . . . . . . . . . . . . . . . . . . . . . Stealth | -11 -10 -10 -10 -9 -8 -7 -7 -7 -7 -7 -6 -6 -6 -6 -6 -6 -6 -5 -5 -5 -5 -5 -5 -5 -4 -4 -4 -4 -4 -4 -3 -3 -2 -2 -2 -1 --------- Run | Scr Mat Min Exi Min Mat Fac Was Fac Low Dat Pro Fac Was Fac Low Low Zio Pro Fac Was Fac Upp Upp Zhi Pro Fac Was Fac Arm Lab Res Tes Res Qua Sec Acc Distress Signals 40 | . 1 . . . 4 1 . 3 . . . . . 2 . . . . . . 2 . . . . . . 2 1 . 4 6 4 . 9 1 Communications Jammed . | . . . . . . . . . . . . . . . . . . . . . . . . . . . . . . . . . . . . . Distress Signals . | . . . . . . . . . . . . . . . . . . . . . . . . . . . . . . . . . . . . . Times Spotted 716 | . 12 13 . 12 47 24 4 34 . 4 5 18 4 58 3 3 . 7 29 6 11 . 19 . 3 23 2 33 16 . 43 13 42 18 152 58 Peak Tracking Total 20 | . 2 3 . 5 9 7 4 7 . 4 5 6 4 8 3 3 . 4 7 6 5 . 10 . 2 6 2 6 9 . 8 4 6 2 10 20 Tactical Retreats 107 | . . 1 . . 2 7 . 13 . . . 2 . 10 . . . . 2 . 6 . 8 . 1 4 . 8 . . 11 2 7 . 13 10 Traps | -11 -10 -10 -10 -9 -8 -7 -7 -7 -7 -7 -6 -6 -6 -6 -6 -6 -6 -5 -5 -5 -5 -5 -5 -5 -4 -4 -4 -4 -4 -4 -3 -3 -2 -2 -2 -1 ------- Run | Scr Mat Min Exi Min Mat Fac Was Fac Low Dat Pro Fac Was Fac Low Low Zio Pro Fac Was Fac Upp Upp Zhi Pro Fac Was Fac Arm Lab Res Tes Res Qua Sec Acc Traps Triggered 27 | . . . . . . 3 . 2 . . . 3 . 3 . . . . 1 . 2 . . . . 2 . . 4 . 2 . 2 2 . 1 Indirectly . | . . . . . . . . . . . . . . . . . . . . . . . . . . . . . . . . . . . . . Trap Hack Attempts 1 | . . . . . . . . . . . . . . . . . . . . . . . . . . 1 . . . . . . . . . . Triggered . | . . . . . . . . . . . . . . . . . . . . . . . . . . . . . . . . . . . . . Disarmed . | . . . . . . . . . . . . . . . . . . . . . . . . . . . . . . . . . . . . . Reprogrammed . | . . . . . . . . . . . . . . . . . . . . . . . . . . . . . . . . . . . . . Reused . | . . . . . . . . . . . . . . . . . . . . . . . . . . . . . . . . . . . . . Traps Extracted . | . . . . . . . . . . . . . . . . . . . . . . . . . . . . . . . . . . . . . Installed . | . . . . . . . . . . . . . . . . . . . . . . . . . . . . . . . . . . . . . Triggered 4 | . . . . 1 . . . . . . . . . . . 1 . 2 . . . . . . . . . . . . . . . . . . Machines | -11 -10 -10 -10 -9 -8 -7 -7 -7 -7 -7 -6 -6 -6 -6 -6 -6 -6 -5 -5 -5 -5 -5 -5 -5 -4 -4 -4 -4 -4 -4 -3 -3 -2 -2 -2 -1 ---------- Run | Scr Mat Min Exi Min Mat Fac Was Fac Low Dat Pro Fac Was Fac Low Low Zio Pro Fac Was Fac Upp Upp Zhi Pro Fac Was Fac Arm Lab Res Tes Res Qua Sec Acc Machines Disabled 41 | . 1 1 . 1 1 . . . . 1 . . . . . . . . . . . . . . . . . 4 3 . 1 4 1 5 17 1 Max in Single Turn 2 | . 1 1 . 1 1 . . . . 1 . . . . . . . . . . . . . . . . . 2 1 . 1 1 1 1 1 1 Garrison Access 27 | . . . . . 1 3 . 3 . . . 2 . 1 . . . . 3 . . . . . . 2 . 3 . . 2 1 2 1 1 2 Energy Cycler 1 | . . . . . . . . . . . . . . . . . . . . . . . . . . . . . . . . . . . . 1 Machines Sabotaged . | . . . . . . . . . . . . . . . . . . . . . . . . . . . . . . . . . . . . . Garrisons Compromised . | . . . . . . . . . . . . . . . . . . . . . . . . . . . . . . . . . . . . . Overloaded Fab Kills . | . . . . . . . . . . . . . . . . . . . . . . . . . . . . . . . . . . . . . Fab Network Shutdowns 12 | . . . . . . 1 . 1 . . . 1 . 1 . . . . 1 . 1 . . . . 1 . 1 1 . 1 1 1 . . . Hacking | -11 -10 -10 -10 -9 -8 -7 -7 -7 -7 -7 -6 -6 -6 -6 -6 -6 -6 -5 -5 -5 -5 -5 -5 -5 -4 -4 -4 -4 -4 -4 -3 -3 -2 -2 -2 -1 --------- Run | Scr Mat Min Exi Min Mat Fac Was Fac Low Dat Pro Fac Was Fac Low Low Zio Pro Fac Was Fac Upp Upp Zhi Pro Fac Was Fac Arm Lab Res Tes Res Qua Sec Acc Machines Accessed 252 | . 6 . 2 . 16 25 . 20 . 4 . 14 . 20 . . . . 18 . 20 . 1 1 . 14 . 14 6 . 8 11 14 18 14 6 Terminals 162 | . 6 . . . 10 17 . 14 . . . 8 . 14 . . . . 13 . 15 . . . . 9 . 9 2 . 4 5 6 13 13 4 Fabricators 26 | . . . . . . 3 . 2 . . . 3 . 2 . . . . 2 . 2 . . . . 2 . 1 3 . 2 2 2 . . . Repair Stations 20 | . . . . . 2 1 . 1 . . . 1 . 3 . . . . . . 2 . . . . 1 . 1 1 . . 2 3 2 . . Recycling Units 2 | . . . . . 2 . . . . . . . . . . . . . . . . . . . . . . . . . . . . . . . Scanalyzers 6 | . . . . . 1 . . . . . . . . . . . . . . . 1 . . . . . . . . . . 1 1 2 . . Garrison Access 28 | . . . . . 1 4 . 3 . . . 2 . 1 . . . . 3 . . . . . . 2 . 3 . . 2 1 2 1 1 2 Total Hacks 1025 | . 24 . 2 . 60 103 . 72 . 29 . 42 . 75 . . . . 77 . 68 . 1 1 . 73 . 69 37 . 42 47 77 58 56 12 Successful 752 | . 13 . 2 . 39 65 . 60 . 29 . 28 . 46 . . . . 45 . 57 . 1 1 . 49 . 50 35 . 37 38 64 46 42 5 Failed 267 | . 11 . . . 20 37 . 12 . . . 13 . 28 . . . . 32 . 10 . . . . 24 . 19 2 . 5 9 12 12 14 7 Catastrophic 23 | . . . . . . 5 . 2 . . . 1 . 2 . . . . 4 . 2 . . . . 2 . 3 . . 1 . . . . 1 Database Lockouts 6 | . . . . . 1 1 . . . . . 1 . 1 . . . . . . 1 . . . . . . . . . . . 1 . . . Manual 564 | . 21 . 1 . 35 71 . 39 . . . 16 . 48 . . . . 53 . 43 . . . . 49 . 45 10 . 21 21 35 19 36 1 Terminals 718 | . 24 . . . 43 81 . 53 . . . 25 . 57 . . . . 62 . 49 . . . . 53 . 53 7 . 32 24 48 44 55 8 Fabricators 134 | . . . . . . 11 . 13 . . . 10 . 7 . . . . 11 . 9 . . . . 12 . 9 22 . 8 10 12 . . . Repair Stations 78 | . . . . . 7 5 . 2 . . . 4 . 8 . . . . . . 6 . . . . 6 . 4 8 . . 7 11 10 . . Recycling Units 7 | . . . . . 7 . . . . . . . . . . . . . . . . . . . . . . . . . . . . . . . Scanalyzers 15 | . . . . . 2 . . . . . . . . . . . . . . . 4 . . . . . . . . . . 4 2 3 . . Garrison Access 40 | . . . . . 1 6 . 4 . . . 3 . 3 . . . . 4 . . . . . . 2 . 3 . . 2 2 4 1 1 4 Terminal Hacks 306 | . 6 . 2 . 19 24 . 20 . 29 . 8 . 13 . . . . 22 . 11 . 1 1 . 18 . 19 2 . 21 13 27 23 24 3 Record 18 | . . . 1 . . . . . . 11 . . . . . . . . . . . . . 1 . . . . . . . . 1 4 . . Part Schematic 45 | . . . . . 3 1 . 2 . 8 . 1 . 2 . . . . 5 . 2 . . . . 7 . 5 . . 2 3 2 1 1 . Robot Schematic 7 | . . . . . . . . . . 7 . . . . . . . . . . . . . . . . . . . . . . . . . . Robot Analysis 24 | . 2 . . . 3 2 . 2 . . . 1 . . . . . . 4 . . . . . . 1 . 2 . . . . 2 2 3 . Prototype ID Bank 31 | . 1 . . . 5 2 . 2 . 3 . . . 1 . . . . 2 . . . . . . 1 . 4 . . . 2 . 6 2 . Open Door 4 | . . . . . . . . . . . . . . . . . . . . . . . 1 . . . . . . . . . . 1 2 . Level Access Points 2 | . . . . . . . . . . . . . . . . . . . . . . . . . . . . . . . . 1 . . 1 . Branch Access Points 9 | . . . . . 1 . . 1 . . . 1 . 1 . . . . 1 . 1 . . . . . . 1 . . 1 . 1 . . . Emergency Access Points 1 | . . . . . . . . . . . . . . . . . . . . . . . . . . . . . . . . . 1 . . . Machine Index 9 | . . . . . . . . . . . . . . . . . . . . . 1 . . . . 1 . 1 1 . 1 1 1 1 1 . Terminal Index 10 | . 1 . . . 1 1 . 1 . . . 1 . 1 . . . . . . 1 . . . . 1 . . . . . . . 1 . 1 Fabricator Index 5 | . . . . . . 1 . 1 . . . . . 1 . . . . 1 . . . . . . . . . . . 1 . . . . . Repair Station Index 1 | . . . . . . . . . . . . . . . . . . . 1 . . . . . . . . . . . . . . . . . Garrison Index 3 | . . . . . . 1 . 1 . . . . . 1 . . . . . . . . . . . . . . . . . . . . . . Alert Level 13 | . . . . . 1 2 . . . . . . . . . . . . . . . . . . . . . . . . 2 1 3 1 2 1 Unreport Threat 37 | . . . . . 1 4 . 1 . . . 3 . 2 . . . . 3 . 1 . . . . 4 . 3 . . 5 . 4 2 4 . Locate Traps 29 | . 2 . . . . 3 . 7 . . . 1 . . . . . . 1 . . . . . . . . 1 1 . 1 2 4 2 3 1 Maintenance Status 9 | . . . . . . 1 . 1 . . . . . 1 . . . . 1 . 1 . . . . 1 . 1 . . 1 . 1 . . . Security Status 1 | . . . . . . . . . . . . . . 1 . . . . . . . . . . . . . . . . . . . . . . Patrol Status 2 | . . . . . . . . . . . . . . . . . . . . . . . . . . . . . . . 1 . 1 . . . Transport Status 1 | . . . . . 1 . . . . . . . . . . . . . . . . . . . . . . . . . . . . . . . Assault Status 1 | . . . . . . . . . . . . . . . . . . . . . . . . . . . . . . . 1 . . . . . Recall Investigation 1 | . . . . . . . . . . . . . . . . . . . 1 . . . . . . . . . . . . . . . . . Recall Extermination 6 | . . . . . . . . 1 . . . . . 1 . . . . 1 . 2 . . . . . . . . . . . 1 . . . Recall Assault 5 | . . . . . . . . . . . . . . 1 . . . . . . . . . . . . . . . . 3 . . . 1 . Hauler Manifests 5 | . . . . . 1 1 . . . . . . . . . . . . 1 . 1 . . . . . . . . . . . 1 . . . Zone Layout 25 | . . . . . 2 5 . . . . . . . . . . . . . . 1 . . . . 2 . 1 . . 2 3 4 2 3 . EX-Prototype ID Bank 1 | . . . 1 . . . . . . . . . . . . . . . . . . . . . . . . . . . . . . . . . Activate Exoskeleton 1 | . . . . . . . . . . . . . . . . . . . . . . . . . . . . . . . . . . . 1 . Fabricator Hacks 91 | . . . . . . 5 . 9 . . . 7 . 7 . . . . 8 . 5 . . . . 9 . 6 16 . 6 6 7 . . . Network Status 1 | . . . . . . . . . . . . . . 1 . . . . . . . . . . . . . . . . . . . . . . Load Schematic 40 | . . . . . . 2 . 3 . . . 3 . 3 . . . . 3 . 2 . . . . 4 . 3 8 . 3 3 3 . . . Build 50 | . . . . . . 3 . 6 . . . 4 . 3 . . . . 5 . 3 . . . . 5 . 3 8 . 3 3 4 . . . Repair Station Hacks 70 | . . . . . 6 4 . 2 . . . 3 . 8 . . . . . . 6 . . . . 6 . 4 8 . . 5 10 8 . . Scan Component 36 | . . . . . 3 2 . 1 . . . 2 . 4 . . . . . . 3 . . . . 3 . 2 4 . . 3 5 4 . . Repair 34 | . . . . . 3 2 . 1 . . . 1 . 4 . . . . . . 3 . . . . 3 . 2 4 . . 2 5 4 . . Recycling Unit Hacks 3 | . . . . . 3 . . . . . . . . . . . . . . . . . . . . . . . . . . . . . . . Report Inventory 1 | . . . . . 1 . . . . . . . . . . . . . . . . . . . . . . . . . . . . . . . Retrieve Components 2 | . . . . . 2 . . . . . . . . . . . . . . . . . . . . . . . . . . . . . . . Scanalyzer 14 | . . . . . 2 . . . . . . . . . . . . . . . 4 . . . . . . . . . . 3 2 3 . . Insert Component 8 | . . . . . 1 . . . . . . . . . . . . . . . 2 . . . . . . . . . . 1 1 3 . . Analyze 6 | . . . . . 1 . . . . . . . . . . . . . . . 2 . . . . . . . . . . 2 1 . . . Garrison Access Hacks 27 | . . . . . 1 2 . 3 . . . 2 . 1 . . . . 3 . . . . . . 2 . 3 . . 2 1 3 1 1 2 Unlock Access 1 | . . . . . . . . . . . . . . . . . . . . . . . . . . . . . . . . . 1 . . . Seal Access 26 | . . . . . 1 2 . 3 . . . 2 . 1 . . . . 3 . . . . . . 2 . 3 . . 2 1 2 1 1 2 Unauthorized Hacks 241 | . 7 . . . 8 30 . 26 . . . 8 . 17 . . . . 12 . 31 . . . . 14 . 18 9 . 8 10 15 11 17 . Terminals 208 | . 7 . . . 6 26 . 23 . . . 7 . 17 . . . . 9 . 28 . . . . 11 . 15 5 . 6 7 13 11 17 . Track 79 | . 2 . . . 2 11 . 11 . . . 1 . 6 . . . . 2 . 10 . . . . 2 . 5 2 . 2 2 6 6 9 . Assimilate 36 | . 3 . . . 1 3 . 5 . . . 2 . 3 . . . . 3 . 2 . . . . 1 . 5 1 . . 1 3 3 . . Botnet 69 | . 1 . . . 3 8 . 6 . . . 3 . 6 . . . . 4 . 13 . . . . 6 . 4 1 . 3 4 2 2 3 . Disrupt 15 | . . . . . . 3 . 1 . . . . . 1 . . . . . . 2 . . . . 1 . 1 1 . . . 1 . 4 . Operators 9 | . 1 . . . . 1 . . . . . 1 . 1 . . . . . . 1 . . . . 1 . . . . 1 . 1 . 1 . Fabricators 30 | . . . . . . 3 . 3 . . . 1 . . . . . . 3 . 3 . . . . 3 . 3 4 . 2 3 2 . . . Report 2 | . . . . . . 1 . . . . . . . . . . . . . . . . . . . . . 1 . . . . . . . . Prioritize 8 | . . . . . . . . 1 . . . 1 . . . . . . 1 . 1 . . . . 1 . 1 1 . . 1 . . . . Siphon 19 | . . . . . . 1 . 2 . . . . . . . . . . 2 . 2 . . . . 2 . 1 3 . 2 2 2 . . . Haulers 1 | . . . . . . 1 . . . . . . . . . . . . . . . . . . . . . . . . . . . . . . Repair Stations . | . . . . . . . . . . . . . . . . . . . . . . . . . . . . . . . . . . . . . Recycling Units 2 | . . . . . 2 . . . . . . . . . . . . . . . . . . . . . . . . . . . . . . . Mask 1 | . . . . . 1 . . . . . . . . . . . . . . . . . . . . . . . . . . . . . . . Tunnel 1 | . . . . . 1 . . . . . . . . . . . . . . . . . . . . . . . . . . . . . . . Scanalyzers . | . . . . . . . . . . . . . . . . . . . . . . . . . . . . . . . . . . . . . Garrison Access 1 | . . . . . . 1 . . . . . . . . . . . . . . . . . . . . . . . . . . . . . . Jam 1 | . . . . . . 1 . . . . . . . . . . . . . . . . . . . . . . . . . . . . . . Data Cores Recovered . | . . . . . . . . . . . . . . . . . . . . . . . . . . . . . . . . . . . . . Used . | . . . . . . . . . . . . . . . . . . . . . . . . . . . . . . . . . . . . . Hacking Detections 152 | . 5 . . . 9 20 . 12 . . . 11 . 15 . . . . 14 . 10 . . . . 9 . 7 2 . 5 5 5 9 8 6 Full Trace Events 15 | . . . . . 1 4 . 1 . . . 1 . 3 . . . . 1 . 1 . . . . . . . 1 . . . . . 1 1 Feedback Events 9 | . . . . . . 3 . . . . . . . 1 . . . . 1 . 2 . . . . . . . 1 . . . . . . 1 Corruption 4 | . . . . . . 1 . . . . . . . . . . . . . . 1 . . . . . . . 1 . . . . . . 1 Hackware Fried 5 | . . . . . . 2 . . . . . . . 1 . . . . 1 . 1 . . . . . . . . . . . . . . . Feedback Blocked . | . . . . . . . . . . . . . . . . . . . . . . . . . . . . . . . . . . . . . Robot Schematics Acquired 7 | . . . . . . . . . . 7 . . . . . . . . . . . . . . . . . . . . . . . . . . Robots Built . | . . . . . . . . . . . . . . . . . . . . . . . . . . . . . . . . . . . . . Matter . | . . . . . . . . . . . . . . . . . . . . . . . . . . . . . . . . . . . . . Time . | . . . . . . . . . . . . . . . . . . . . . . . . . . . . . . . . . . . . . Total Robot Build Rating . | . . . . . . . . . . . . . . . . . . . . . . . . . . . . . . . . . . . . . Part Schematics Acquired 49 | . . . . . 4 1 . 2 . 8 . 1 . 2 . . . . 5 . 3 . . . . 7 . 5 . . 2 4 3 1 1 . Parts Built 49 | . . . . . . 3 . 4 . . . 2 . 4 . . . . 5 . 3 . . . . 5 . 3 9 . 3 4 4 . . . Matter 10132 | . . . . . . 364 . 710 . . . 603 . 709 . . . . 874 . 581 . . . . 1106 . 784 1842 . 808 602 1149 . . . Time 3370 | . . . . . . 108 . 246 . . . 132 . 182 . . . . 227 . 221 . . . . 460 . 171 670 . 454 190 309 . . . Total Part Build Rating 301 | . . . . . . 9 . 20 . . . 11 . 23 . . . . 30 . 19 . . . . 34 . 25 52 . 26 20 32 . . . Parts Repaired 34 | . . . . . 3 2 . 1 . . . 1 . 4 . . . . . . 3 . . . . 3 . 2 4 . . 2 5 4 . . Time 1464 | . . . . . 109 43 . 22 . . . 26 . 184 . . . . . . 158 . . . . 70 . 160 357 . . 57 179 99 . . Parts Recycled . | . . . . . . . . . . . . . . . . . . . . . . . . . . . . . . . . . . . . . Recycled Matter . | . . . . . . . . . . . . . . . . . . . . . . . . . . . . . . . . . . . . . Retrieved Matter . | . . . . . . . . . . . . . . . . . . . . . . . . . . . . . . . . . . . . . Retrieved Components 18 | . . . . . 18 . . . . . . . . . . . . . . . . . . . . . . . . . . . . . . . Parts Scanalyzed 4 | . . . . . 1 . . . . . . . . . . . . . . . 1 . . . . . . . . . . 1 1 . . . Part Schematics Acquired 4 | . . . . . 1 . . . . . . . . . . . . . . . 1 . . . . . . . . . . 1 1 . . . Parts Damaged 2 | . . . . . . . . . . . . . . . . . . . . . 1 . . . . . . . . . . . 1 . . . Bothacking | -11 -10 -10 -10 -9 -8 -7 -7 -7 -7 -7 -6 -6 -6 -6 -6 -6 -6 -5 -5 -5 -5 -5 -5 -5 -4 -4 -4 -4 -4 -4 -3 -3 -2 -2 -2 -1 ------------ Run | Scr Mat Min Exi Min Mat Fac Was Fac Low Dat Pro Fac Was Fac Low Low Zio Pro Fac Was Fac Upp Upp Zhi Pro Fac Was Fac Arm Lab Res Tes Res Qua Sec Acc Used RIF Installer . | . . . . . . . . . . . . . . . . . . . . . . . . . . . . . . . . . . . . . Robots Hacked 3 | . . . . . . . . . . . . . . . . . . . . . . . . . . 3 . . . . . . . . . . Non-combat 3 | . . . . . . . . . . . . . . . . . . . . . . . . . . 3 . . . . . . . . . . Combat . | . . . . . . . . . . . . . . . . . . . . . . . . . . . . . . . . . . . . . Robot Hacks Applied 3 | . . . . . . . . . . . . . . . . . . . . . . . . . . 3 . . . . . . . . . . find_chute 3 | . . . . . . . . . . . . . . . . . . . . . . . . . . 3 . . . . . . . . . . Relay Couplers Released 7 | . . . . . . . . . . . . . . 4 . . . . . . . . . . . 3 . . . . . . . . . . Programmers 7 | . . . . . . . . . . . . . . 4 . . . . . . . . . . . 3 . . . . . . . . . . Robots Rewired 2 | . . . . . . . . . . . . . . . . . . . 1 . . . . . . 1 . . . . . . . . . . Allies Hacked 3 | . . . . . . . . . . . . . . . . . . . 2 . . . . . . . . . 1 . . . . . . . Hacks Repelled 1 | . . . . . . . . . . . . . . . . . . . 1 . . . . . . . . . . . . . . . . . Allies | -11 -10 -10 -10 -9 -8 -7 -7 -7 -7 -7 -6 -6 -6 -6 -6 -6 -6 -5 -5 -5 -5 -5 -5 -5 -4 -4 -4 -4 -4 -4 -3 -3 -2 -2 -2 -1 -------- Run | Scr Mat Min Exi Min Mat Fac Was Fac Low Dat Pro Fac Was Fac Low Low Zio Pro Fac Was Fac Upp Upp Zhi Pro Fac Was Fac Arm Lab Res Tes Res Qua Sec Acc Total Allies 46 | . 1 . . 6 . 1 . 5 . . . 2 . 3 . . 9 . 3 . 2 . . . . 2 1 4 1 . . 1 2 3 . . Largest Group 9 | . 1 . . 5 5 1 . 2 . . . 2 2 2 . . 9 9 7 . 1 . . . . 2 1 2 . . . 1 1 2 1 . Highest-Rated Group 259 | . 10 . . 78 78 10 . 36 . . . 36 36 52 . . 259 259 221 . 26 . . . . 56 46 88 . . . 44 44 88 44 . Highest-Rated Ally 60 | . 10 . . 31 31 10 . 26 . . . 26 26 26 . . 31 31 60 . 26 . . . . 44 46 44 . . . 44 44 44 44 . Total Orders 38 | . . . . . . . . . . . . 2 . 9 . . . . 6 . 2 . . . . 4 . 8 . . . 1 . 6 . . STAY 22 | . . . . . . . . . . . . 1 . 5 . . . . 3 . 1 . . . . 2 . 5 . . . 1 . 4 . . FOLLOW 16 | . . . . . . . . . . . . 1 . 4 . . . . 3 . 1 . . . . 2 . 3 . . . . . 2 . . Ally Attacks 164 | . . . . 10 82 . . . . . . . . . . . . 42 22 . . . . . . 8 . . . . . . . . . . Total Damage 2374 | . . . . 85 1043 . . . . . . . . . . . . 763 433 . . . . . . 50 . . . . . . . . . . Kills 22 | . . . . 2 10 . . . . . . . . . . . . 8 2 . . . . . . . . . . . . . . . . . Allies Corrupted 1 | . . . . . . . . . . . . . . . . . . . . . . . . . . . . . . . . . . 1 . . Allies Melted . | . . . . . . . . . . . . . . . . . . . . . . . . . . . . . . . . . . . . . Intel | -11 -10 -10 -10 -9 -8 -7 -7 -7 -7 -7 -6 -6 -6 -6 -6 -6 -6 -5 -5 -5 -5 -5 -5 -5 -4 -4 -4 -4 -4 -4 -3 -3 -2 -2 -2 -1 ------- Run | Scr Mat Min Exi Min Mat Fac Was Fac Low Dat Pro Fac Was Fac Low Low Zio Pro Fac Was Fac Upp Upp Zhi Pro Fac Was Fac Arm Lab Res Tes Res Qua Sec Acc Robot Analysis Total 24 | . 2 . . . 3 2 . 2 . . . 1 . . . . . . 4 . . . . . . 1 . 2 . . . . 2 2 3 . Derelict Logs Recovered 14 | . . 2 . 1 . . . . . . 1 . . . . 2 1 1 . . . 1 2 . 3 . . . . . . . . . . . Drone Launches . | . . . . . . . . . . . . . . . . . . . . . . . . . . . . . . . . . . . . . Drone Recoveries . | . . . . . . . . . . . . . . . . . . . . . . . . . . . . . . . . . . . . . Exploration | -11 -10 -10 -10 -9 -8 -7 -7 -7 -7 -7 -6 -6 -6 -6 -6 -6 -6 -5 -5 -5 -5 -5 -5 -5 -4 -4 -4 -4 -4 -4 -3 -3 -2 -2 -2 -1 ------------- Run | Scr Mat Min Exi Min Mat Fac Was Fac Low Dat Pro Fac Was Fac Low Low Zio Pro Fac Was Fac Upp Upp Zhi Pro Fac Was Fac Arm Lab Res Tes Res Qua Sec Acc Turns Passed 40927 | 116 1210 571 372 692 2782 1529 23 2268 71 51 64 1111 36 2139 39 82 581 283 1759 21 1735 181 248 46 301 1823 20 1934 1001 3132 3286 966 2951 1764 5148 591 Spaces Moved 45638 | 60 656 457 411 602 2404 3124 70 2971 197 103 182 2095 118 3659 134 265 1244 300 2131 73 2371 379 586 124 555 2728 69 2336 1145 460 3022 936 3561 2208 2943 959 Core 668 | 15 . . . . . . . . . . . 2 . . . . 4 . . . . . . . . 9 . . . 444 13 . . 2 33 146 Treads 1037 | 45 202 . . . . . . . . . . . . . . . . . . . . . . . . . . . . . . . . . 790 . Legs 17 | . . . . . . . . . . . . . . . . . . . . . . . . . . . . . . . . . . . 17 . Wheels 3818 | . 454 457 411 602 1894 . . . . . . . . . . . . . . . . . . . . . . . . . . . . . . . Hover 1162 | . . . . . . . . . . . . . . . . . . . . . . . . . . . . . . . . . . . 540 622 Flight 38936 | . . . . . 510 3124 70 2971 197 103 182 2093 118 3659 134 265 1240 300 2131 73 2371 379 586 124 555 2719 69 2336 1145 16 3009 936 3561 2206 1563 191 Fastest Speed 27 | 50 90 90 90 90 32 32 32 32 32 32 32 27 29 29 29 29 29 29 29 29 29 29 29 29 29 29 29 29 29 29 27 27 27 27 27 35 Average Speed 46 | 132 111 90 90 90 89 32 32 32 32 32 34 30 29 29 29 29 29 29 29 29 29 29 29 29 29 29 29 29 29 659 29 27 27 27 84 44 Slowest Speed 1050 | 160 160 90 90 90 172 32 32 32 32 32 35 107 29 29 29 29 200 29 106 29 29 29 29 29 29 250 29 106 40 700 183 104 181 1050 900 111 Overloaded Moves . | . . . . . . . . . . . . . . . . . . . . . . . . . . . . . . . . . . . . . Propulsion Burnouts . | . . . . . . . . . . . . . . . . . . . . . . . . . . . . . . . . . . . . . Robots Hopped 206 | . . . . . 5 27 . 26 . 1 1 13 1 21 . . . . 7 . 33 . 2 . . 22 . 5 1 . 19 1 5 4 6 6 Cave-ins Triggered 1 | . . . . . . . . . . . . . . . . . . . . . . . . . . . . . . . 1 . . . . . Teleports 3 | . . . . . . . . . . . . . . . . . . . . . . . . . . . . . 1 . . . . . 1 1 Exploration Rate (%) 58 | 6 92 99 71 95 96 66 61 63 31 76 57 36 77 71 29 53 80 37 41 83 39 56 84 57 67 38 69 40 36 5 39 78 51 94 82 27 Regions Visited 36 Branch Regions 19 Pre-discovered Areas 9 | . . 1 1 . 1 . . . . 1 . . . . . . 2 . . . . 1 . . 2 . . . . . . . . . . . Known Exits Taken 23 | . . . . . 1 . . 1 1 1 1 . . 1 1 1 1 1 . . 1 1 1 1 1 . . 1 1 1 1 1 1 1 1 . Unknown Exits Taken 5 | 1 1 1 1 1 . . . . . . . . . . . . . . . . . . . . . . . . . . . . . . . . Scrap Searched 26 | . . 3 . 2 . . . . 1 . 1 . . . . 2 5 3 . . . 2 5 . 2 . . . . . . . . . . . Spaces Dug 371 | . 7 . . . . 39 . 33 3 . . 10 . 19 . . 2 . 29 . 27 2 . . 3 31 . 33 3 . 62 5 25 13 17 8 Terrain Destroyed 1139 | . 10 48 . 51 53 39 . 33 3 . . 12 . 38 . . 2 . 67 . 82 3 98 . 3 69 . 157 3 . 122 9 62 15 143 17 Melee 307 | . . . . . . 39 . 33 3 . . 9 . 19 . . 2 . 20 . 24 2 . . 3 28 . 25 3 . 45 3 22 12 15 . Projectile 287 | . 7 . . . 5 . . . . . . 3 . . . . . . 15 . 6 1 . . . 14 . 19 . . 49 6 14 3 128 17 AOE 545 | . 3 48 . 51 48 . . . . . . . . 19 . . . . 32 . 52 . 98 . . 27 . 113 . . 28 . 26 . . . Terrain Rammed . | . . . . . . . . . . . . . . . . . . . . . . . . . . . . . . . . . . . . . Walls Destroyed . | . . . . . . . . . . . . . . . . . . . . . . . . . . . . . . . . . . . . . Machines Disabled . | . . . . . . . . . . . . . . . . . . . . . . . . . . . . . . . . . . . . . Actions | -11 -10 -10 -10 -9 -8 -7 -7 -7 -7 -7 -6 -6 -6 -6 -6 -6 -6 -5 -5 -5 -5 -5 -5 -5 -4 -4 -4 -4 -4 -4 -3 -3 -2 -2 -2 -1 --------- Run | Scr Mat Min Exi Min Mat Fac Was Fac Low Dat Pro Fac Was Fac Low Low Zio Pro Fac Was Fac Upp Upp Zhi Pro Fac Was Fac Arm Lab Res Tes Res Qua Sec Acc Total 63164 | 80 1053 556 413 729 2866 3555 69 4201 201 114 180 2513 118 4579 133 269 1453 493 3165 72 3336 442 644 133 685 3635 68 3474 1760 557 5211 1623 5474 3286 4955 1069 Wait 14703 | . 328 58 . 105 289 334 . 1168 2 8 . 352 2 728 . 5 184 189 939 . 934 56 43 . 120 824 . 1015 514 96 1911 608 1616 933 1319 23 Move 45210 | 59 655 456 410 601 2393 3072 69 2922 196 100 179 2069 115 3616 133 264 1243 299 2117 72 2308 378 581 123 554 2687 68 2326 1142 459 2984 933 3549 2199 2931 948 Hop 187 | . . . . . 5 25 . 22 . 1 1 13 1 21 . . . . 7 . 29 . 2 . . 19 . 4 1 . 17 1 5 4 5 4 Pick Up 207 | 6 13 1 2 1 31 4 . . . . . 6 . 11 . . 2 1 1 . 3 . . 3 . 2 . 2 23 . 13 9 10 12 43 8 Fast Attach 118 | 4 . 1 . . 2 5 . 6 . . . 12 . 14 . . 6 . 3 . 4 . . 2 1 7 . 6 1 . . 5 5 8 23 3 Attach 162 | 3 3 2 . 2 14 3 . . . . . 9 . 8 . . 2 1 . . 2 . 1 2 . 3 . . 25 . 11 3 6 5 41 16 Detach 37 | . . . . . 1 . . . . . . 4 . 1 . . 2 . . . 1 . 1 1 . 2 . . 6 . 2 . . 3 6 7 Swap 344 | . 6 6 . 5 25 5 . 2 . . . . . 24 . . . . 18 . 11 2 . . . 13 . 22 1 2 46 19 55 23 59 . Drop 147 | . 8 1 1 1 14 3 . 4 . . . 8 . 15 . . 7 1 2 . 2 . . 2 1 2 . 2 1 . 5 11 8 16 24 8 Fire 610 | 8 40 31 . 14 79 2 . . . . . 3 . 2 . . 1 . 18 . 8 1 9 . . 17 . 28 . . 57 6 17 6 215 48 Melee 1320 | . . . . . 13 66 . 59 3 5 . 37 . 121 . . 6 2 58 . 34 5 7 . 9 57 . 69 46 . 164 28 165 77 289 . Ram 4 | . . . . . . . . . . . . . . . . . . . . . . . . . . . . . . . . . . . . 4 Kick . | . . . . . . . . . . . . . . . . . . . . . . . . . . . . . . . . . . . . . Crush . | . . . . . . . . . . . . . . . . . . . . . . . . . . . . . . . . . . . . . Escape Stasis 111 | . . . . . . 36 . 18 . . . . . 18 . . . . . . . . . . . . . . . . 1 . 38 . . . Rewire 3 | . . . . . . . . . . . . . . . . . . . 2 . . . . . . 1 . . . . . . . . . . Trap 1 | . . . . . . . . . . . . . . . . . . . . . . . . . . 1 . . . . . . . . . . Miscellaneous . | . . . . . . . . . . . . . . . . . . . . . . . . . . . . . . . . . . . . . Route ------- -11/Scrapyard -10/Materials (discovered 4 exits: [*Mat x3] / [*Min]) -10/Mines (discovered 3 exits: [*Mat x2] / *Exi) -10/Exiles (discovered 2 exits: [*Min x2]) -9/Mines (discovered 2 exits: *Mat x2) -8/Materials (discovered 3 exits: *Fac x3) -7/Factory (discovered 5 exits: *Fac x3 / *Low x2) -7/Waste -7/Factory (discovered 4 exits: *Fac x2 / *Low x2) -7/Lower Caves -7/Data Miner -6/Proximity Caves -6/Factory (discovered 3 exits: *Fac / Low x2) -6/Waste -6/Factory (discovered 5 exits: *Fac x3 / *Low x2) -6/Lower Caves -6/Lower Caves -6/Zion (discovered 2 exits: [*Dee] / *Pro) -5/Proximity Caves -5/Factory (discovered 3 exits: *Fac / Upp x2) -5/Waste -5/Factory (discovered 4 exits: *Fac x2 / *Upp x2) -5/Upper Caves -5/Upper Caves -5/Zhirov -4/Proximity Caves -4/Factory (discovered 2 exits: *Res x2) -4/Waste -4/Factory (discovered 5 exits: Upp x2 / Ext x2 / *Arm) -4/Armory -4/Lab -3/Research (discovered 3 exits: *Res / *Tes x2) -3/Testing -2/Research (discovered 4 exits: *Acc x2 / *Qua x2) -2/Quarantine (discovered 2 exits: *Acc / *Sec) -2/Section 7 -1/Access To Epsilon Eridani History --------- Turn | Location | Event 18 | -11/Scrapyard | Discovered new exit (range 16) 117 | -11/Scrapyard | Entered Materials 308 | -10/Materials | Build established: Mutant 556 | -10/Materials | Discovered new exit (range 11) 881 | -10/Materials | Discovered new exit (range 8) 917 | -10/Materials | Discovered new exit (range 9) 1201 | -10/Materials | Discovered new exit (range 15) 1327 | -10/Materials | Entered Mines 1327 | -10/Mines | Discovered new exit (range 12) 1364 | -10/Mines | Learned Materials trap positions 1528 | -10/Mines | Discovered new exit (range 10) 1683 | -10/Mines | Learned location of Zion (-6) 1893 | -10/Mines | Deemed a non-threat by the Exiles lab entrance 1893 | -10/Mines | Discovered new exit (range 5) 1898 | -10/Mines | Entered Exiles 1913 | -10/Exiles | Discovered new exit (range 15) 1921 | -10/Exiles | Met 8R-AWN 1935 | -10/Exiles | Met EX-HEX 1971 | -10/Exiles | Met EX-DEC 2091 | -10/Exiles | Met EX-BIN 2104 | -10/Exiles | Aligned with FarCom system 2105 | -10/Exiles | Given EX-Vault access code 2126 | -10/Exiles | Opened EX-Vault 2131 | -10/Exiles | Found Longsword +1 2151 | -10/Exiles | Found Superbattery 2169 | -10/Exiles | Warned to stay clear of 0b10 Research branches 2260 | -10/Exiles | Discovered new exit (range 14) 2270 | -10/Exiles | Stole two prototypes: Superbattery, Longsword +1 2270 | -10/Exiles | Entered Mines 2299 | -9/Mines | Met a Derelict testing a Signal Generator 2309 | -9/Mines | Found Signal Generator 2551 | -9/Mines | Learned Materials emergency access door positions 2605 | -9/Mines | Discovered new exit (range 9) 2614 | -9/Mines | Assisted by bots powering up and referring to "LRC-V3" 2659 | -9/Mines | Core integrity fell below 50% 2701 | -9/Mines | Discovered new exit (range 5) 2962 | -9/Mines | Entered Materials 2962 | -8/Materials | Accompanied by 5 allies 2962 | -8/Materials | Evolved 4 slots: Utility x4 2963 | -8/Materials | Loaded intel: 11 trap records 2967 | -8/Materials | Led the pair of lost Derelicts to an unsafe place 3439 | -8/Materials | Repaired Grenade Launcher 3472 | -8/Materials | Repaired Arm. Wheel 3561 | -8/Materials | Discovered new exit (range 3) 3738 | -8/Materials | Discovered new exit (range 16) 3816 | -8/Materials | Build established: Scavenger-Mutant 4097 | -8/Materials | Lost 4 parts (1n3u) 4105 | -8/Materials | Destroyed 9 combat bots 4206 | -8/Materials | Repaired Imp. Assault Rifle 4333 | -8/Materials | Discovered new exit (range 15) 4512 | -8/Materials | Build established: Hacker-Skirmisher 4813 | -8/Materials | Build established: Hacker-Mutant 4981 | -8/Materials | Central database locked down 5545 | -8/Materials | Build established: Hacker-Skirmisher 5744 | -8/Materials | Identified exit to Factory 5744 | -8/Materials | Entered Factory 5744 | -7/Factory | Evolved 2 slots: Utility x2 5746 | -7/Factory | FarCom data flow suspended 6033 | -7/Factory | Build established: Hacker-Sprinter 6156 | -7/Factory | Repaired Imp. VTOL Module 6234 | -7/Factory | Discovered new exit (range 11) 6242 | -7/Factory | Identified exit to Factory 6380 | -7/Factory | Discovered exit to Factory (range 14) 6422 | -7/Factory | Found Rocket Array 6442 | -7/Factory | Discovered exit to Factory (range 5) 6544 | -7/Factory | First assault squad dispatched 6575 | -7/Factory | Discovered new exit (range 13) 6780 | -7/Factory | Fabricated Hacking Suite? 6792 | -7/Factory | Fabricated System Shield (x1) 6835 | -7/Factory | Local fabrication network quarantined 6843 | -7/Factory | Fabricated Hacking Suite (x1) 6907 | -7/Factory | Discovered new exit (range 20) 7023 | -7/Factory | Central database locked down 7130 | -7/Factory | Build established: Wizard-Sprinter 7225 | -7/Factory | System Shield fried by hacking feedback 7225 | -7/Factory | Hacking Suite fried by hacking feedback 7238 | -7/Factory | Repaired Lgt. Assault Rifle 7273 | -7/Factory | Manually triggered Chute Trap 7273 | -7/Factory | Sucked down chute 7273 | -7/Factory | Entered Waste 7281 | -7/Waste | Spotted C-40 Crusher 7288 | -7/Waste | Spotted C-40 Crusher 7289 | -7/Waste | Spotted C-40 Crusher 7290 | -7/Waste | Spotted C-40 Crusher 7291 | -7/Waste | Discovered new exit (range 14) 7295 | -7/Waste | Identified exit to Factory 7296 | -7/Waste | Entered Factory 7525 | -7/Factory | Build established: Hacker-Sprinter 7551 | -7/Factory | Identified exit to Lower Caves 7812 | -7/Factory | Repaired Lrn. Sensor Array 7950 | -7/Factory | Discovered exit to Factory (range 5) 8593 | -7/Factory | Discovered exit to Factory (range 15) 8894 | -7/Factory | Fabricated Imp. Hacking Suite? 8930 | -7/Factory | Fabricated Exp. Sensor Array? 9109 | -7/Factory | Fabricated Imp. Hacking Suite? 9184 | -7/Factory | Fabricated Exp. Weapon Shielding? 9197 | -7/Factory | Local fabrication network quarantined 9364 | -7/Factory | Build established: Wizard-Sprinter 9564 | -7/Factory | Entered Lower Caves 9632 | -7/Lower Caves | A Derelict revealed a hidden shortcut to meet someone special 9635 | -7/Lower Caves | Identified exit to Data Miner 9635 | -7/Lower Caves | Entered Data Miner 9635 | -7/Data Miner | Discovered new exit (range 6) 9642 | -7/Data Miner | Met Data Miner 9648 | -7/Data Miner | Learned location of Section 7 (-2) 9648 | -7/Data Miner | Acquired the access code to Warlord's prototype stash 9653 | -7/Data Miner | Received God Mode back door access code from Data Miner 9662 | -7/Data Miner | Data Conduit disabled 9674 | -7/Data Miner | Build established: Hacker-Sprinter 9686 | -7/Data Miner | Identified exit to Proximity Caves 9686 | -7/Data Miner | Entered Proximity Caves 9690 | -6/Proximity Caves | Attracted the attention of an 0b10 checkpoint 9699 | -6/Proximity Caves | Learned Factory security intel 9718 | -6/Proximity Caves | Lost 3 parts (1p1n1u) 9744 | -6/Proximity Caves | Discovered exit to Factory (range 16) 9750 | -6/Proximity Caves | Entered Factory 9750 | -6/Factory | Evolved 2 slots: Utility x2 9927 | -6/Factory | Fabricated Exp. Sensor Array (x1) 10005 | -6/Factory | Repaired Exp. Weapon Shielding 10108 | -6/Factory | Fabricated Exp. Cesium-ion Thruster (x1) 10272 | -6/Factory | Identified exit to Lower Caves 10308 | -6/Factory | Found Exp. Terrain Scan Processor 10402 | -6/Factory | Central database locked down 10411 | -6/Factory | Discovered new exit (range 16) 10442 | -6/Factory | Local fabrication network quarantined 10861 | -6/Factory | Manually triggered Chute Trap 10861 | -6/Factory | Sucked down chute 10861 | -6/Factory | Entered Waste 10864 | -6/Waste | Spotted C-40 Crusher 10866 | -6/Waste | Spotted C-40 Crusher 10868 | -6/Waste | Spotted C-40 Crusher 10872 | -6/Waste | Spotted C-40 Crusher 10872 | -6/Waste | Spotted C-40 Crusher 10875 | -6/Waste | 2 allies followed down the chute 10876 | -6/Waste | EMP discharged 10876 | -6/Waste | System corruption reached 10% 10895 | -6/Waste | Discovered new exit (range 10) 10897 | -6/Waste | Identified exit to Factory 10897 | -6/Waste | Entered Factory 11090 | -6/Factory | Discovered new exit (range 15) 11350 | -6/Factory | Repaired Lgt. Fission Core 11449 | -6/Factory | Discovered exit to Lower Caves (range 10) 11449 | -6/Factory | Discovered exit to Lower Caves (range 3) 11508 | -6/Factory | Discovered new exit (range 16) 11664 | -6/Factory | Repaired Lgt. Fission Core 11829 | -6/Factory | Found Prototype Processor 11829 | -6/Factory | Identified Exp. Signal Interpreter 11899 | -6/Factory | Discovered new exit (range 12) 11908 | -6/Factory | Identified exit to Factory 12114 | -6/Factory | Found Scatter Rocket Array 12297 | -6/Factory | First assault squad dispatched 12317 | -6/Factory | Imp. Hacking Suite fried by hacking feedback 12443 | -6/Factory | Core integrity fell below 50% 12524 | -6/Factory | Fabricated Mic. Fission Core (x2) 12581 | -6/Factory | Fabricated Adv. Hacking Suite (x1) 12616 | -6/Factory | Central database locked down 12682 | -6/Factory | Local fabrication network quarantined 12748 | -6/Factory | Fabricated Exp. Sensor Array (x1) 12753 | -6/Factory | Spotted B-75 Beast 12908 | -6/Factory | Repaired Exp. Propulsion Shielding 12954 | -6/Factory | Repaired Exp. Cesium-ion Thruster 13036 | -6/Factory | Entered Lower Caves 13073 | -6/Lower Caves | Discovered new exit (range 9) 13075 | -6/Lower Caves | Identified exit to Lower Caves 13075 | -6/Lower Caves | Entered another Lower Caves area 13145 | -6/Lower Caves | Learned 4 Factory zone layouts 13147 | -6/Lower Caves | Learned Factory terminal intel 13150 | -6/Lower Caves | Spotted 8C-FZM(f) 13152 | -6/Lower Caves | Encountered a Master Thief 13152 | -6/Lower Caves | Spotted WC-IVK(f) 13152 | -6/Lower Caves | Spotted FR-WXK(f) 13154 | -6/Lower Caves | Encountered a Master Thief 13156 | -6/Lower Caves | Encountered a Master Thief 13156 | -6/Lower Caves | Discovered new exit (range 4) 13157 | -6/Lower Caves | Identified exit to Zion 13157 | -6/Lower Caves | Entered Zion 13173 | -6/Zion | Found Prototype Device 13177 | -6/Zion | Discovered new exit (range 14) 13190 | -6/Zion | Gained Derelict followers 13207 | -6/Zion | System corruption cleaned by Quarantine Array 13224 | -6/Zion | Visited the Megawrench Repair Shop 13257 | -6/Zion | Gained Derelict followers 13280 | -6/Zion | Discovered new exit (range 3) 13327 | -6/Zion | Learned location of Armory (-4) 13383 | -6/Zion | Received a visual enhancement algorithm 13417 | -6/Zion | Identified Phasing AFG 13491 | -6/Zion | Megawrench repaired 8 parts 13563 | -6/Zion | Identified exit to Proximity Caves 13738 | -6/Zion | Entered Proximity Caves 13738 | -5/Proximity Caves | Accompanied by 9 allies 13933 | -5/Proximity Caves | Learned Factory garrison access intel 13996 | -5/Proximity Caves | Discovered exit to Factory (range 6) 14021 | -5/Proximity Caves | Entered Factory 14021 | -5/Factory | Accompanied by 5 allies 14021 | -5/Factory | Evolved 2 slots: Utility x2 14023 | -5/Factory | Loaded intel: 20 terminal locations 14024 | -5/Factory | Loaded intel: 4 garrison access locations 14527 | -5/Factory | P-70 Sage assimilated allied Archangel 6a 14577 | -5/Factory | Destroyed 8 combat bots 14638 | -5/Factory | Build established: Wizard-Sprinter 15057 | -5/Factory | Fabricated Adv. System Shield (x1) 15084 | -5/Factory | Fabricated Adv. System Shield (x1) 15091 | -5/Factory | Fabricated Adv. Hacking Suite (x1) 15110 | -5/Factory | Local fabrication network quarantined 15146 | -5/Factory | Fabricated Mni. Smartbomb Launcher (x1) 15147 | -5/Factory | Fabricated Adv. Hacking Suite? 15213 | -5/Factory | Adv. Hacking Suite fried by hacking feedback 15478 | -5/Factory | Discovered new exit (range 16) 15482 | -5/Factory | Identified exit to Factory 15592 | -5/Factory | Identified exit to Upper Caves 15780 | -5/Factory | Sucked down chute 15780 | -5/Factory | Entered Waste 15783 | -5/Waste | Spotted C-40 Crusher 15786 | -5/Waste | Spotted C-40 Crusher 15791 | -5/Waste | Spotted C-40 Crusher 15795 | -5/Waste | EMP discharged 15795 | -5/Waste | System corruption reached 10% 15797 | -5/Waste | Spotted C-40 Crusher 15798 | -5/Waste | Spotted C-40 Crusher 15798 | -5/Waste | Discovered new exit (range 11) 15799 | -5/Waste | Spotted C-40 Crusher 15801 | -5/Waste | Identified exit to Factory 15801 | -5/Waste | Entered Factory 15887 | -5/Factory | Repaired Exp. Sensor Array 15891 | -5/Factory | Discovered exit to Factory (range 15) 16014 | -5/Factory | Discovered exit to Factory (range 15) 16245 | -5/Factory | Spotted B-75 Beast 16705 | -5/Factory | Repaired Broken Cld. Plasma Cannon 16734 | -5/Factory | Repaired System Restoration Module 16812 | -5/Factory | Adv. Hacking Suite fried by hacking feedback 16841 | -5/Factory | Central database locked down 17099 | -5/Factory | Build established: Hacker-Sprinter 17359 | -5/Factory | Fabricated Adv. Hacking Suite (x1) 17376 | -5/Factory | Local fabrication network quarantined 17415 | -5/Factory | Fabricated Adv. Hacking Suite (x1) 17436 | -5/Factory | Fabricated Exp. Melee Analysis Suite (x1) 17536 | -5/Factory | Entered Upper Caves 17555 | -5/Upper Caves | Acquired the password to a Derelict Tinkerer's latest research 17653 | -5/Upper Caves | Build established: Wizard-Sprinter 17685 | -5/Upper Caves | Discovered new exit (range 15) 17717 | -5/Upper Caves | Identified exit to Upper Caves 17717 | -5/Upper Caves | Entered another Upper Caves area 17717 | -5/Upper Caves | Spotted WC-KID(f) 17718 | -5/Upper Caves | Encountered a Master Thief 17718 | -5/Upper Caves | Superbattery stolen by Master Thief 17735 | -5/Upper Caves | Encountered a Warlord checkpoint 17762 | -5/Upper Caves | Attracted the attention of an 0b10 outpost 17859 | -5/Upper Caves | Learned Factory security intel 17963 | -5/Upper Caves | Discovered new exit (range 8) 17965 | -5/Upper Caves | Identified exit to Zhirov 17965 | -5/Upper Caves | Entered Zhirov 17965 | -5/Zhirov | Discovered new exit (range 3) 17971 | -5/Zhirov | Met Zhirov 17980 | -5/Zhirov | Found Alien Artifact 17981 | -5/Zhirov | Identified Integrated Reactor 17981 | -5/Zhirov | Installed Integrated Reactor, increased core energy generation (+10) 17986 | -5/Zhirov | Found Alien Artifact 18010 | -5/Zhirov | Identified exit to Proximity Caves 18011 | -5/Zhirov | Entered Proximity Caves 18136 | -4/Proximity Caves | Spotted B-86 Titan 18283 | -4/Proximity Caves | Learned Research terminal intel 18306 | -4/Proximity Caves | Discovered exit to Factory (range 8) 18312 | -4/Proximity Caves | Entered Factory 18312 | -4/Factory | Evolved 2 slots: Utility x2 18794 | -4/Factory | P-80 Master assimilated allied Director 7a 19002 | -4/Factory | Discovered new exit (range 8) 19082 | -4/Factory | Discovered new exit (range 14) 19086 | -4/Factory | Identified exit to Research 19409 | -4/Factory | Fabricated Exp. Sensor Array (x1) 19490 | -4/Factory | Fabricated Adv. System Shield (x1) 19506 | -4/Factory | Fabricated Exp. Hacking Suite? 19604 | -4/Factory | Fabricated Exp. Hacking Suite (x1) 19710 | -4/Factory | Local fabrication network quarantined 19711 | -4/Factory | Fabricated Adv. Reaction Control System (x1) 19830 | -4/Factory | Repaired Exp. Weapon Shielding 19857 | -4/Factory | Repaired Exp. Propulsion Shielding 19977 | -4/Factory | Repaired Mic. Fission Core 20135 | -4/Factory | Manually triggered Chute Trap 20135 | -4/Factory | Sucked down chute 20135 | -4/Factory | Entered Waste 20136 | -4/Waste | Met a frightened Derelict 20142 | -4/Waste | Spotted C-40 Crusher 20146 | -4/Waste | Spotted C-40 Crusher 20150 | -4/Waste | Spotted C-40 Crusher 20151 | -4/Waste | Spotted C-40 Crusher 20152 | -4/Waste | Discovered new exit (range 13) 20155 | -4/Waste | Identified exit to Factory 20155 | -4/Waste | Entered Factory 20665 | -4/Factory | Identified exit to Upper Caves 20665 | -4/Factory | Identified exit to Extension 20665 | -4/Factory | Identified exit to Armory 20962 | -4/Factory | Repaired Exp. Sensor Array 21072 | -4/Factory | Repaired Exp. Weapon Shielding? 21215 | -4/Factory | Fabricated Adv. Reaction Control System? 21302 | -4/Factory | Fabricated Quantum Shading Machine? 21619 | -4/Factory | Fabricated Quantum Shading Machine (x1) 21663 | -4/Factory | Local fabrication network quarantined 22089 | -4/Factory | Entered Armory 22215 | -4/Armory | Fabricated Mni. Fusion Reactor? 22221 | -4/Armory | Lost 3 parts (3u) 22245 | -4/Armory | Identified Transdimensional Reconstructor 22245 | -4/Armory | Warped through subspace to slip node 22245 | -4/Armory | Discovered new exit (range 1) 22357 | -4/Armory | Core integrity fell below 50% 22438 | -4/Armory | Fabricated Exp. Sensor Array (x1) 22518 | -4/Armory | Fabricated Exp. Signal Interpreter (x1) 22563 | -4/Armory | Fabricated Powered Armor (x2) 22660 | -4/Armory | Fabricated Exp. Hacking Suite? 22758 | -4/Armory | Fabricated Exp. Hacking Suite? 22778 | -4/Armory | Repaired Exp. Sensor Array 22891 | -4/Armory | Repaired Quantum Shading Machine 22896 | -4/Armory | Fabricated EM Dispersion Field? 22901 | -4/Armory | Local fabrication network quarantined 22930 | -4/Armory | Fabricated Exp. Weapon Shielding (x1) 22972 | -4/Armory | Repaired Cld. Plasma Cannon 23063 | -4/Armory | Repaired Exp. Cesium-ion Thruster 23090 | -4/Armory | Identified exit to Lab 23090 | -4/Armory | Entered Lab 23090 | -4/Lab | Discovered exit to Research (range 9) 23094 | -4/Lab | Unable to decrypt terminal 23503 | -4/Lab | Build established: Wizard-Mutant 26222 | -4/Lab | Entered Research 26222 | -3/Research | Evolved 2 slots: Utility x2 26223 | -3/Research | Loaded intel: 17 terminal locations 26476 | -3/Research | Discovered new exit (range 11) 26531 | -3/Research | Build established: Wizard-Sprinter 27917 | -3/Research | Fabricated Adv. Reaction Control System? 28211 | -3/Research | Local fabrication network quarantined 28240 | -3/Research | Fabricated Femtoactuators? 28247 | -3/Research | Fabricated Exp. Energy Well? 28258 | -3/Research | First assault squad dispatched 28431 | -3/Research | Discovered new exit (range 5) 28538 | -3/Research | Found Exp. Melee Analysis Suite 28558 | -3/Research | Found Exp. Melee Analysis Suite 29006 | -3/Research | Crushed by falling debris 29039 | -3/Research | Identified exit to Testing 29508 | -3/Research | Entered Testing 29550 | -3/Testing | Repaired Mni. Fusion Reactor 29627 | -3/Testing | Identified exit to Research 29730 | -3/Testing | Repaired Adv. Reaction Control System 29764 | -3/Testing | Found Prototype Device 29765 | -3/Testing | Identified Exp. Hardlight Generator 29831 | -3/Testing | Found Prototype Energy Gun 29831 | -3/Testing | Identified Tachyon Dispersion Ray 30108 | -3/Testing | Fabricated Imp. Fusion Compressor (x1) 30120 | -3/Testing | Local fabrication network quarantined 30132 | -3/Testing | Fabricated Powered Armor (x2) 30141 | -3/Testing | Fabricated Exp. Utility Shielding? 30474 | -3/Testing | Entered Research 30474 | -2/Research | Evolved 2 slots: Utility x1, Weapon x1 30499 | -2/Research | Repaired Nova Cannon 30776 | -2/Research | Central database locked down 30776 | -2/Research | Identified exit to Quarantine 30884 | -2/Research | Repaired Mni. Fusion Reactor 30923 | -2/Research | Repaired Adv. Reaction Control System 30931 | -2/Research | Found Exp. Hacking Suite 31174 | -2/Research | Discovered new exit (range 15) 31206 | -2/Research | Spotted B-90 Cyclops 31242 | -2/Research | Garrison activated, responded to threat 31991 | -2/Research | Repaired Mni. Fusion Reactor 32015 | -2/Research | Repaired Powered Armor 32312 | -2/Research | Discovered new exit (range 10) 32315 | -2/Research | Identified exit to Access 32506 | -2/Research | Identified exit to Garrison 32533 | -2/Research | Fabricated Exp. Weapon Shielding? 32633 | -2/Research | Fabricated Dimensional Manipulator (x1) 32709 | -2/Research | Fabricated Dimensional Manipulator (x1) 32959 | -2/Research | Fabricated Exp. Phase Shifter? 33090 | -2/Research | Local fabrication network quarantined 33425 | -2/Research | Entered Quarantine 33447 | -2/Quarantine | Found Transdimensional Reconstructor 33448 | -2/Quarantine | Found Alien Artifact 33481 | -2/Quarantine | Found Alien Artifact 33828 | -2/Quarantine | Found Alien Slashing Weapon 33828 | -2/Quarantine | Identified Sigix Broadsword 33840 | -2/Quarantine | Spotted Alpha 7 33861 | -2/Quarantine | Destroyed Alpha 7 33864 | -2/Quarantine | Found Prototype Processor 33864 | -2/Quarantine | Identified Exp. Target Analyzer 33918 | -2/Quarantine | Identified Hpw. Transdimensional Reconstructor 33918 | -2/Quarantine | Identified Subatomic Replicator 34261 | -2/Quarantine | Repaired Cld. Field Propulsion Drive 34313 | -2/Quarantine | Discovered exit to Access (range 15) 34320 | -2/Quarantine | Found Alien Artifact 34331 | -2/Quarantine | Identified Core Reset Matrix 34397 | -2/Quarantine | Repaired Powered Armor 34424 | -2/Quarantine | Repaired Exp. Utility Shielding 34974 | -2/Quarantine | Found Alien Impact Weapon 35015 | -2/Quarantine | Spotted Fortress 35019 | -2/Quarantine | Identified Core Stripper 35027 | -2/Quarantine | Destroyed Fortress 35031 | -2/Quarantine | Found Exp. Force Field 35079 | -2/Quarantine | Repaired Exp. Utility Shielding 35107 | -2/Quarantine | Found Prototype Device 35108 | -2/Quarantine | Identified Thermal Barrier 35164 | -2/Quarantine | Discovered new exit (range 5) 35185 | -2/Quarantine | Identified exit to Section 7 35189 | -2/Quarantine | Entered Section 7 35189 | -2/Section 7 | Accompanied by 1 ally 35249 | -2/Section 7 | Found Beam Splitter 35564 | -2/Section 7 | Spotted B-90 Cyclops 35976 | -2/Section 7 | Spotted B-90 Cyclops 36172 | -2/Section 7 | Spotted S7 Guard 36195 | -2/Section 7 | Warped through subspace 36664 | -2/Section 7 | Spotted B-99 Colossus 36681 | -2/Section 7 | Found Alien Artifact 36682 | -2/Section 7 | Identified LRC Insulator 36682 | -2/Section 7 | Installed LRC Insulator, gained EM resistance (25) 36801 | -2/Section 7 | Spotted Alpha 7 36801 | -2/Section 7 | Spotted Alpha 7 36840 | -2/Section 7 | Spotted S7 Guard 36868 | -2/Section 7 | Destroyed Alpha 7 36901 | -2/Section 7 | Destroyed S7 Guard 36905 | -2/Section 7 | Destroyed Alpha 7 36931 | -2/Section 7 | Lost 4 parts (3u1w) 36977 | -2/Section 7 | First assault squad dispatched 37106 | -2/Section 7 | Destroyed S7 Guard 37123 | -2/Section 7 | Found Prototype Protection 37124 | -2/Section 7 | Identified Hvy. Regenerative Plating 37136 | -2/Section 7 | Lost 4 parts (1p1n2u) 37232 | -2/Section 7 | System corruption reached 10% 37310 | -2/Section 7 | Build established: Wizard-Mutant 37696 | -2/Section 7 | Found Prototype Slashing Weapon 37697 | -2/Section 7 | Identified Centrium Greatsword 37702 | -2/Section 7 | Found Powered Armor 37723 | -2/Section 7 | Found Prototype Launcher 37728 | -2/Section 7 | Identified Enh. Gamma Bomb Array 37898 | -2/Section 7 | Lost 4 parts (1n3u) 38223 | -2/Section 7 | Spotted S7 Guard 38260 | -2/Section 7 | Destroyed S7 Guard 38267 | -2/Section 7 | Build established: Wizard-Skirmisher 38296 | -2/Section 7 | Found Alien Artifact 38296 | -2/Section 7 | Identified Integrated Singularity Reactor 38296 | -2/Section 7 | Installed Integrated Singularity Reactor, increased core energy generation (+20) 38392 | -2/Section 7 | Found Alien Artifact 38392 | -2/Section 7 | Identified Integrity Redistributor 38392 | -2/Section 7 | Used Integrity Redistributor, redistributed integrity from core (-153) 38429 | -2/Section 7 | Found Integrated Reactor 38429 | -2/Section 7 | Installed Integrated Reactor, increased core energy generation (+10) 38970 | -2/Section 7 | Core integrity fell below 50% 39235 | -2/Section 7 | Found Integrity Redistributor 39370 | -2/Section 7 | Found Core Reset Matrix 39441 | -2/Section 7 | Spotted Executioner 39446 | -2/Section 7 | Spotted Executioner 39452 | -2/Section 7 | Destroyed Executioner 39471 | -2/Section 7 | Destroyed Executioner 39764 | -2/Section 7 | Build established: Wizard-Mutant 40058 | -2/Section 7 | Lost 7 parts (1p3u3w) 40082 | -2/Section 7 | System corruption reached 30% 40156 | -2/Section 7 | Lost 3 parts (3u) 40190 | -2/Section 7 | Found Exp. ECM Suite 40191 | -2/Section 7 | Found Exp. Targeting Computer 40194 | -2/Section 7 | Found Exp. Target Analyzer 40263 | -2/Section 7 | Found Alien Artifact 40263 | -2/Section 7 | Identified Core Regenerator 40263 | -2/Section 7 | Used Core Regenerator, restored core integrity (+362) 40284 | -2/Section 7 | Found Alien Artifact 40284 | -2/Section 7 | Identified Core Membrane 40284 | -2/Section 7 | Installed Core Membrane, gained immunity to corruption 40337 | -2/Section 7 | Entered Access 40337 | -1/Access | Evolved 2 slots: Power x1, Propulsion x1 40346 | -1/Access | Spotted B-99 Colossus 40378 | -1/Access | Build established: Scavenger-Mutant 40443 | -1/Access | Lost 6 parts (2u4w) 40633 | -1/Access | Spotted B-99 Colossus 40747 | -1/Access | Energy Cycler disabled 40780 | -1/Access | Lost 8 parts (4n3u1w) 40799 | -1/Access | Core integrity fell below 50% 40801 | -1/Access | Warped through subspace 40837 | -1/Access | First assault squad dispatched 40841 | -1/Access | Lost 3 parts (3u) 40858 | -1/Access | Core integrity fell below 20% 40926 | -1/Access | Discovered new exit (range 5) 40928 | *** | Escaped! Last Messages --------------- 40878_ Penetrated by Slug. 40878_ P-80 Master destroyed. 40879_ Penetrated by Slug. 40885_ Acquired Dimensional Manipulator. 40893_ U-05 Engineer builds a Wall. 40893_ C-30 ARC bursts open, deploying its payload. 40893_ G-73 Enforcer unfolds itself. 40893_ I-47 Archangel unfolds itself. 40897_ Acquired 3 matter. 40899_ P-80 Master suffers critical hit. 40908_ C-30 ARC bursts open, deploying its payload. 40908_ G-73 Enforcer unfolds itself. 40908_ B-74 Champion unfolds itself. 40908_ I-47 Archangel unfolds itself. 40919_ Triggered Alarm Trap. 40919_ An alarm sounds. 40919_ ALERT: Alarm triggered, dispatching investigation squad. 40923_ Main Access Shell breached. 40926_ The Access Shell folds into the floor. 40926_ EXIT=FOUND Map ----- +----------------------------------------------------+ | #?????? #??# #?? # # ?# | | ###?????? " #??# +? ############## # | | ?????????"""" #??# #? #????????????# # | | ?????# ?""""" #??## ## #????????????# + | | ?????# """"" ##### ## #????????????# # | | ?????# """" / + #????????????# # | | ?????# " ######## #????????????# ?# | | ?????# #???????#####????????????# ?? | | ?????# ! ! #????????????????????????# ??? | | ?????# #????????????????????????####??? | | ?????##########+####################+#???????????? | | ? ???????????? | | ? ????????????? | | ????###########+##### ""#?????????????????? | | ????????????????????# ""#?????????????????? | | ????????????????????# ""#?????????????????? | | ????????????????????# T#?????????????????? | | ????????????????????# ""#?????????????????? | | ????????????????????# ""#?????????????????? | | ???????????????????## ""##????????????????? | | ???????????????????# #????????????????? | | ???????????????????## ##????????????????? | | ????????????????????# #?????????????????? | | ????????????????????# #?????????????????? | | ????????????????????# #?????????????????? | | ????????????????????# @" #?????????????????? | | ????????????????????# "" #?????????????????? | | ????????????????????# #?????????????????? | | ????????????????????# #?????????????????? | | ????????????????????# #?????????????????? | | ????????????????????#""""""""""#?????????????????? | | ?????????????????????????????????????????????????? | | ?????????????????????????????????????????????????? | | ?????????????????????????????????????????????????? | | ?????????????????????????????????????????????????? | | ?????????????????????????????????????????????????? | | ?????????????????????????????????????????????????? | | ?????????????????????????????????????????????????? | | ?????????????????????????????????????????????????? | | ?????????????????????????????????????????????????? | | ?????????????????????????????????????????????????? | | ?????????????????????????????????????????????????? | | ?????????????????????????????????????????????????? | | ?????????????????????????????????????????????????? | | ?????????????????????????????????????????????????? | | ?????????????????????????????????????????????????? | | ?????????????????????????????????????????????????? | | ?????????????????????????????????????????????????? | | ?????????????????????????????????????????????????? | | ?????????????????????????????????????????????????? | +----------------------------------------------------+ Best States ------------- Heat Dissipation 87 Energy Generation 65 Energy Capacity 1190 Matter Stores 875 Matter Capacity 900 Sight Range 23 Robot Scan Range 30 Terrain Scan Density 1010 ECM Strength 3 Additional Mass Support 50 EM Shielding 4 Armor Coverage 1200 Resistance: TH 75 Resistance: EM 100 Propulsion Shielding 90 Utility Shielding 90 Weapon Shielding 90 Melee Speed Boost 50 Phase Shifting 20 Evasion (%) 98 Targeting Accuracy 12 Melee Accuracy 20 Target Analysis 12 Recoil Reduction 2 Offensive Hacking 88 Defensive Hacking 50 Item Schematics ----------------- System Shield | -8/Materials | Hacked Adv. Signal Interpreter | -8/Materials | Hacked Hacking Suite | -8/Materials | Hacked Imp. VTOL Module | -8/Materials | Scanalyzed Exp. Sensor Array | -7/Factory | Hacked Imp. Hacking Suite | -7/Factory | Hacked Exp. Weapon Shielding | -7/Factory | Hacked Combat Drone Bay | -7/Data Miner | Free Lgt. Regenerative Plating | -7/Data Miner | Free Exp. Flexi-carbon Leg | -7/Data Miner | Free Exp. Cesium-ion Thruster | -7/Data Miner | Free Exp. Terrain Scanner | -7/Data Miner | Free Exp. Targeting Computer | -7/Data Miner | Free Exp. ECM Suite | -7/Data Miner | Free Cloaking Device | -7/Data Miner | Free Exp. Utility Shielding | -6/Factory | Hacked Mic. Fission Core | -6/Factory | Hacked Adv. Hacking Suite | -6/Factory | Hacked Mni. Smartbomb Launcher | -5/Factory | Hacked Adv. System Shield | -5/Factory | Hacked Exp. Melee Analysis Suite | -5/Factory | Hacked Exp. Signal Interpreter | -5/Factory | Hacked Lgt. Assault Rifle | -5/Factory | Hacked Impulse Thruster Array | -5/Factory | Hacked Cld. Plasma Cannon | -5/Factory | Scanalyzed Med. Storage Unit | -5/Factory | Hacked Exp. Hacking Suite | -4/Factory | Hacked Adv. Reaction Control System | -4/Factory | Hacked Quantum Shading Machine | -4/Factory | Hacked Imp. Fusion Compressor | -4/Factory | Hacked Exp. Terrain Scan Processor | -4/Factory | Hacked Mni. Fusion Reactor | -4/Factory | Hacked Plasma Lance | -4/Factory | Hacked Exp. Energy Well | -4/Factory | Hacked EM Dispersion Field | -4/Factory | Hacked Imp. Diametric Drive | -4/Factory | Hacked System Purifier | -4/Factory | Hacked Powered Armor | -4/Factory | Hacked Femtoactuators | -3/Research | Hacked Exp. Actuator Array | -3/Research | Hacked Exp. Coolant Injector | -3/Testing | Scanalyzed Exp. Armor Integrity Analyzer | -3/Testing | Hacked Exp. Phase Shifter | -3/Testing | Hacked Dimensional Manipulator | -3/Testing | Hacked Beam Splitter | -2/Research | Hacked Exp. Focal Shield | -2/Research | Hacked Exp. Q-thruster | -2/Research | Scanalyzed Exp. Force Field | -2/Quarantine | Hacked Exp. Matter Compressor | -2/Section 7 | Hacked Robot Schematics ------------------ S-27 Virus | -7/Data Miner | Free G-50 Soldier | -7/Data Miner | Free G-67 Veteran | -7/Data Miner | Free X-72 Disruptor | -7/Data Miner | Free H-66 Slayer | -7/Data Miner | Free I-36 Angel | -7/Data Miner | Free I-47 Archangel | -7/Data Miner | Free Fabricated ------------ Hacking Suite | x1 | -7/Factory System Shield | x1 | -7/Factory Hacking Suite | x1 | -7/Factory Imp. Hacking Suite | x1 | -7/Factory Exp. Sensor Array | x1 | -7/Factory Imp. Hacking Suite | x1 | -7/Factory Exp. Weapon Shielding | x1 | -7/Factory Exp. Sensor Array | x1 | -6/Factory Exp. Cesium-ion Thruster | x1 | -6/Factory Mic. Fission Core | x2 | -6/Factory Adv. Hacking Suite | x1 | -6/Factory Exp. Sensor Array | x1 | -6/Factory Adv. System Shield | x1 | -5/Factory Adv. System Shield | x1 | -5/Factory Adv. Hacking Suite | x1 | -5/Factory Mni. Smartbomb Launcher | x1 | -5/Factory Adv. Hacking Suite | x1 | -5/Factory Adv. Hacking Suite | x1 | -5/Factory Adv. Hacking Suite | x1 | -5/Factory Exp. Melee Analysis Suite | x1 | -5/Factory Exp. Sensor Array | x1 | -4/Factory Adv. System Shield | x1 | -4/Factory Exp. Hacking Suite | x1 | -4/Factory Exp. Hacking Suite | x1 | -4/Factory Adv. Reaction Control System | x1 | -4/Factory Adv. Reaction Control System | x1 | -4/Factory Quantum Shading Machine | x1 | -4/Factory Quantum Shading Machine | x1 | -4/Factory Mni. Fusion Reactor | x1 | -4/Armory Exp. Sensor Array | x1 | -4/Armory Exp. Signal Interpreter | x1 | -4/Armory Powered Armor | x2 | -4/Armory Exp. Hacking Suite | x1 | -4/Armory Exp. Hacking Suite | x1 | -4/Armory EM Dispersion Field | x1 | -4/Armory Exp. Weapon Shielding | x1 | -4/Armory Adv. Reaction Control System | x1 | -3/Research Femtoactuators | x1 | -3/Research Exp. Energy Well | x1 | -3/Research Imp. Fusion Compressor | x1 | -3/Testing Powered Armor | x2 | -3/Testing Exp. Utility Shielding | x1 | -3/Testing Exp. Weapon Shielding | x1 | -2/Research Dimensional Manipulator | x1 | -2/Research Dimensional Manipulator | x1 | -2/Research Exp. Phase Shifter | x1 | -2/Research Alien Tech Used ----------------- Integrated Reactor Transdimensional Reconstructor Sigix Broadsword Core Stripper High-powered Transdimensional Reconstructor LRC Insulator Integrated Singularity Reactor Integrity Redistributor Core Regenerator Core Membrane Achievements -------------- None Challenges ------------ None Game ------ Seed MetafiberImpulseImmobilizer Manual? 0 Play Time 14:32:55 Cumulative 418.3 hours Start 2021.03.29 @ 00:00:33 End 2021.05.05 @ 16:38:16 Sessions 43 Manual Loads 0 Difficulty Rogue Special Mode None Game No. 131 Rogue 127 Adventurer 4 Explorer 0 Win Type 0 Total 10 Types 5/1/3/0/0/0/0/1/0 Lore% 80 Gallery% 82 Achievement% 68 Wizard Run 0 Options --------- ASCII 1 Keyboard 0 Movement Arrows Keybinds 0 Fullscreen 1 Font 18/Terminus Map View 76x50 Tactical HUD 1 Map Filters NONE Filters NONE Steam 1 RUN: 8e31d0e7-dc06-4286-9d29-3264fa1db809